Workbook

Sheet Nyugat
B2: Szürke mágustorony (500-506. épület) [15,19 - 15,49 - 15,79 - 15,109 - 15,34 - 15,64 - 15,94] | C2: 4 kaktusztüske (#114) | D2: 1 bordacsont (#16) | E2: 1. labirintus [20,13 - 26,47 - 22,77 - 29,107]
C3: vagy | D3: vagy
C4: 10 tüske (#22) | D4: 2 varányszem (#30)
B6: Tanya | C6: 3. labirintus | D6: 4. labirintus
B7: (507. épület) [25,16] | C7: [24,20] | D7: [32,16]
B8: (534. épület) [27,91] | C8: [31,95] | D8: [32,88]
B10: Kastély (528. épület) [26,23] | C10: 8. labirintus [23,19] | D10: 9. labirintus [22,29] | E10: 10. labirintus [32,22]
B12: Fekete gránittorony | C12: 11. labirintus | D12: 12. labirintus
B13: (530. épület) [27,36] | C13: [33,35] | D13: [29,40]
B14: (535. épület) [25,101] | C14: [31,105] | D14: [31,99]
B16: Gnóm lak (531. épület) [25,49] | C16: 1 fáklya (#36) | D16: 10 szögletes kő (#17) | E16: 13. labirintus [32,22] | F16: 14. labirintus [32,22]
C17: 1 grákóbőr (#41)
B19: Törpe tanya (532. épület) [25,66] | C19: 5 tükör (#43) | D19: 15. labirintus [33,68] | E19: 16. labirintus [30,61]
C20: 3 smirglilevél (#29)
B22: Kobudera tanya (532. épület) [28,77] | C22: 3 fúvócső (#20) | D22: 17. labirintus [26,72] | E22: 18. labirintus [27,81]
B24: Városháza
B25: (Shaddar) (539. épület) [42,28] | C25: 5. labirintus [44,23] | D25: 6. labirintus [46,33] | E25: 19. Labirintus [53,38]
B26: (Qvill) (527. épület) [45,62] | C26: 5. labirintus [41,60] | D26: 6. labirintus [52,58] | E26: 7. Labirintus [47,67]
B27: (Gatin) (540. épület) [44,98] | C27: 3 dözmöng szív | D27: 20. Labirintus [45,91] | E27: 9. Labirintus [22,29]
B29: Vangorf gróf vára | C29: 33. Labirintus | D29: 34. Labirintus | E29: 35. Labirintus | F29: 36. Labirintus
B30: (547. épület) [70,15] | C30: [63,12] | D30: [70,4] | E30: [81,23] | F30: [71,18]
B31: (551. épület) [71,70] | C31: [72,65] | D31: [79,75] | E31: [85,60] | F31: [78,79]
B33: Lord Kovács József | C33: 6 bronzhegyű nyíl (#94) | D33: 37. Labirintus | E33: 38. Labirintus | F33: 39. Labirintus
B34: (548. épület) [70,31] | D34: [68,24] | E34: [79,31] | F34: [57,81]
B35: (552. épület) [69,83] | D35: [73,89] | E35: [79,83] | F35: [88,25]
B37: Lady Olívia | C37: 41. Labirintus | D37: 1 obszidián függő (#195) | E37: 1 dorony tüdő (#212) | F37: 42. Labirintus
B38: (549. épület) [71,56] | C38: [62,55] | E38: 1 amniosz (#203) | F38: [75,60]
B39: (553. épület) [75,106] | C39: [69,105] | E39: 3 gyöngymangó (#135) | F39: [88,107]
B41: Gnóm kutatóállomás | C41: 43. Labirintus | D41: 3 fémrúd (#104) | E41: 44. Labirintus | F41: 2 dözmöng szív (#122) | G41: 45. Labirintus
B42: (550. épület) [76,45] | C42: [61,91] | D42: 10 sallank karom (#128) | E42: [85,89] | F42: 1 vapár ág (#110) | G42: [73,99]
B43: (554. épület) [72,94] | C43: [64,47] | D43: 2 vadász tatu bőr (#15) | E43: [89,44] | F43: 1 téfea agy (#172) | G43: [87,51]
B45: Helytartói hivatal | C45: 46. Labirintus | D45: 47. Labirintus | E45: 48. Labirintus | F45: 49. Labirintus
B46: (Xantrox) (563. épület) [98,19] | C46: [98,12] | D46: [97,18] | E46: [95,26] | F46: [108,20]
B47: (Libertan) (578. épület) [93,53] | C47: [94,47] | D47: [92,52] | E47: [90,44] | F47: [103,56]
B48: (Wargpin) (579. épület) [99,80] | C48: [100,74] | D48: [98,79] | E48: [92,86] | F48: [108,79]
B49: (Huertol) (580. épület) [96,107] | C49: [96,101] | D49: [95,106] | E49: [87,104] | F49: [107,108]
B51: Sötét kastplom | C51: 8 vadász tatu bőr (#15) | D51: 1 trikornis szarv (#198) | E51: 50. Labirintus | F51: 51. Labirintus | G51: 52. Labirintus
B52: (Xantrox) (566. épület) [97,18] | E52: [98,19] | F52: [99,18] | G52: [98,19]
B53: (Libertan) (569. épület) [92,52] | E53: [93,53] | F53: [94,52] | G53: [93,53]
B54: (Wargpin) (570. épület) [98,79] | E54: [99,80] | F54: [100,79] | G54: [99,80]
B55: (Huertol) (571. épület) [95,106] | E55: [96,107] | F55: [97,106] | G55: [96,107]
B57: Elf villa | C57: 3 galachmit (#310) | E57: 68. labirintus
B58: (600. épület) [140,13] | D58: 66. labirintus [131,10] | E58: [140,13]
B59: (601. épület) [140,29] | D59: 67. labirintus [131,28] | E59: [140,29]
B60: (602. épület) [140,45] | D60: 66. labirintus [130,46] | E60: [140,45]
B61: (603. épület) [140,75] | D61: 66. labirintus [128,74] | E61: [140,75]
B62: (604. épület) [140,110] | D62: 66. labirintus [131,113] | E62: [140,110]
B63: (605. épület) [140,58] | D63: 67. labirintus [133,56] | E63: [140,58]
B64: (606. épület) [140,91] | D64: 67. labirintus [130,88] | E64: [140,91]
B66: Kragoru tornya | C66: 1 Thargodan esszenca (#328) | D66: 1 bőrpáncél (#51) | E66: 72. labirintus [131,38] | F66: 73. labirintus [124,51]
B67: (664. épület) [72,84] | C67: 1 remákszív (#264) | D67: 1 bőrpajzs (#45)
C68: 1 xirnox szív (#213) | D68: 1 bőrsisak (#57)
B69: (665. épület) [132,46] | C69: 1 dözmöngszív (#122) | D69: 1 smaragd védőgyűrű (#223)
C70: 1 rókafarok (#124) | D70: 1 kőhegyű lándzsa (#7)
B72: Városháza | C72: 20 szögletes kő (#17) | D72: Építs egy városépítkezésbe 200 TVP-t | E72: 1 ezüstshuriken (#327) | F72: Építs egy épületbe 200 TVP-t | G72: 1 kötél (#92) | H72: Építs egy városépítkezésbe 200 TVP-t | I72: 1 vashegyű lándzsa (#182) | J72: 1000 arany (#50)
B73: (Fehérbérc) (685. épület) [73,59] | C73: 20 bot (#4) | G73: 1 nehezék (#258) | I73: 1 vas dobónyíl (#189)
B75: Cirkuszi fősátor | C75: 134 amniosz (#203) | D75: 1 ????????? | E75: 1 élő proteinsólyom vagy dombi yeti vagy lajhárlord. | F75: 136. Labirintus | G75: 50 jóságpont ** opcionális **
B76: (714. épület) [90,88] | F76: [86,92]
B77: (715. épület) [88,42] | F77: [89,36]
B79: Fejvadászház (Gatin) (757. épület) [44,99] | C79: Nehéz Norbi - [49,103] | D79: Féktelen Fantom - [48,63] | E79: Ököl - [51,99]
B81: Fejvadászcéh (758. épület) - [99,82] | C81: Vérmes Amazon - [101,82] | D81: Brod - [109,109] | E81: 187. Labirintus [108,103]
B83: Toborzóiroda | C83: 192. labirintus
B84: (Xantrox) (759. épület) [98,21] | C84: [98,24]
B85: (Libertan) (760. épület) [93,55] | C85: [93,58]
B86: (Huertol) (761. épület) [96,109] | C86: [96,112]
B88: Sámánkunyhó (767. épület) [97,69] | C88: 2 mocsárivérc szem (#1758) | D88: 189. Labirintus [101,68] | E88: 190. Labirintus [111,75] | F88: 191. Labirintus [120,73]
B90: Fősátor (Vaskarom) (770. épület) [96,107] | C90: 3 vadászkés (#1264) | D90: KLD 43 - [81,86] | E90: KLD 44 - [138,121] | F90: KLD 45 - [95,106] | G90: 204. Labirintus [95,106] | H90: 205. Labirintus [92,100] | I90: KLD 46 - [101,103]
C91: 3 kígyóbőr öv (#410) | D91: - | E91: - | F91: - | I91: csapatmunka 9+
C92: 3 vas fejpánt (#408) | D92: 40 TVP | E92: 40 TVP | F92: 40 TVP | I92: 40 TVP
C93: 1 ryuku mellvért (#689)
B95: Bányászház (839. épület) [121,71] | C95: 1 rézdarab (#70) | D95: 121. Labirintus [120,57] | E95: 14 kaja (#2) | F95: 122. Labirintus [124,103] (csak az eleje) | G95: 122. Labirintus [124,103] | H95: H 1106 (ősök könyve) ---> 123. Labirintus [136,36]
C96: 1 óndarab (#85) | E96: 3 szeksztáns (#32)
C97: 1 vasérc (#152) | E97: 1 bányászcsákány (#434)
C98: 1 ramit kő (#226) | E98: 2 csatabárd (#555)
C99: 1 ilkin érc (#232) | E99: 2 üllő (#1103)
C100: 1 pular kristály (#239)
C101: 1 ezüstdarab (#326)
C102: 1 mithril (#352)

Sheet Kelet
B2: Királyi palota | C2: 150 TVP építése egy királyi emlékműbe | D2: 70. Labirintus | E2: 71. labirintus | F2: Erdei bölcs küldetéssorozat teljesítése | G2: 95. Labirintus [198,28] | H2: 1 eknozol (#540) | I2: Sir Argothius felkeresése a 98-as labirintusban (SF - Borzalom Fellegvára) | J2: 1 Techiulan amulettje (#499)
B3: (Zangroz) (650. épület) [184,31] | D3: [169,29] | E3: [151,66] | H3: 1 iknegurin (#541)
B4: (Alanor) (651. épület) [186,60] | D4: [170,58] | E4: [159,41] | H4: 1 mihlanil (#539)
B5: (Roxat) (652. épület) [187,106] | D5: [167,105] | E5: [148,100]
B7: Erdei bölcs | C7: 3 galachmit (#310) | D7: 74. Labirintus | E7: 75. Labirintus | F7: 76. Labirintus | G7: 77. Labirintus [169,7] | H7: 78. Labirintus [152,46] | I7: 79. Labirintus [211,99] | J7: 80. Labirintus [164,55] | K7: 94. Labirintus [193,12]
B8: (666. épület) [182,27] | D8: [182,8] | E8: [151,29] | F8: [193,24]
B9: (667. épület) [179,53] | C9: 1 zangrozi csizma (#451) | D9: [149,50] | E9: [169,63] | F9: [187,71]
B10: (668. épület) [189,101] | D10: [152,108] | E10: [153,90] | F10: [183,89]
B12: Invázióügyi Minisztérium | C12: 2 praglonc hártya (#215) | D12: 99. Labirintus | E12: megfejtés varázslat ismerete és elmondása | F12: 100. Labirintus | G12: 101. Labirintus [377,88]
B13: (Zangroz) (687. épület) [185,32] | C13: 7 Thargodan esszencia (#328) | D13: [183,32] | F13: [184,33]
B14: (Alanor) (688. épület) [187,61] | C14: 1 pszi kő (#248) | D14: [185,61] | F14: [186,62]
B15: (Roxat) (689. épület) [188,107] | D15: [186,107] | F15: [187,108]
B17: Tolvajcéh (Zangroz) (699. épület) [182,31] | C17: BE 699 parancsnál: lopás 26+ | D17: 1 kiráyi borosüveg (#1092) | E17: KLD 1 - [183,29] | F17: KLD 2 - [186,32] | G17: KLD 3 - [184,31] | H17: KLD 4 - [182,31] | I17: 117. Labirintus [177,29] | J17: 3 kremanta varázskő (#1094) | K17: 118. Labirintus [187,29] | L17: 119. Labirintus [185,33] | M17: 120. Labirintus [185,33]
E18: zárnyitás 20+ | F18: rejtőzködés 24+ | G18: lopás 34+ | H18: csapdaészlelés 20+
E19: 40 TVP | F19: 40 TVP | G19: 40 TVP | H19: 40 TVP
B21: Bányászház (700. épület) [181,104] | C21: 1 rézdarab (#70) | D21: 121. Labirintus [184,93] | E21: 14 kaja (#2) | F21: 122. Labirintus [165,112] (csak az eleje) | G21: 122. Labirintus [165,112] (teljes) | H21: H 1106 (ősök könyve) ---> 123. Labirintus [208,20]
C22: 1 vasérc (#152) | E22: 3 szeksztáns (#32)
C23: 1 ramit kő (#226) | E23: 1 bányászcsákány (#434)
C24: 1 ilkin érc (#232) | E24: 2 csatabárd (#555)
C25: 1 mithril (#352) | E25: 2 üllő (#1103)
C26: 1 mihlanil (#539)
C27: 1 adamantit (#627)
C28: 1 arkog kő (#632)
B30: Cirkuszi fősátor | C30: 134 amniosz (#203) | D30: 1 ????????? | E30: 1 élő proteinsólyom | F30: 136. Labirintus [189,42] | G30: 50 jóságpont ** opcionális **
B31: (713. épület) [176,39]
B32: (727. épület) [193,95]
B34: Kémhálózat (Alanor) (744. épület) [187,62] | C34: KLD 11 - [188,107] | D34: KLD 12 - [188,107] | E34: 165. Labirintus [199,108] | F34: KLD 13 - [198,111] | G34: 1 különleges varkaudar tekercs (#1585) | H34: KLD 14 - [186,104] | I34: KLD 15 - [186,104] | J34: 166. Labirintus [186,104] | K34: KLD 16 - [188,107] | L34: KLD 17 - [188,107] | M34: Fielgring Zebulon felkutatása véletlenszerűen bukkan fel Roxat valamely városmezején
C35: titkosírás 20+ | D35: felderítés 48+ | F35: 1 hűségérme (megmarad) | H35: erő 70+ | I35: nyomkövetés 143+ | K35: ??? | L35: 3000 arany
C36: 40 TVP | D36: 40 TVP | H36: 40 TVP | I36: 40 TVP | K36: 40 TVP | L36: 40 TVP
B38: Toborzóiroda | C38: 193. labirintus
B39: (Zangroz) (762. épület) [183,33] | C39: [183,37]
B40: (Alanor) (763. épület) [186,62] | C40: [186,66]
B41: (Roxat) (764. épület) [188,108] | C41: [188,112]
B43: Léghajóállomás (Alanor) (817. épület) [186,59] | C43: minimum szint 65. | D43: 10 bahrot bőr (#938) | E43: KLD 49 - [186,59] | F43: KLD 50 - [308,65] | G43: 217. Labirintus [383,31] | H43: KLD 51 - [186,59] | I43: Ide kell Kyeli maszkja | J43: 10 manakristály (#500) | K43: KLD 52 - [186,59]
D44: 4 hentelő bőr (#1768) | E44: hajózás 60+ | F44: - | H44: Csata 1 légelemntál herceggel | I44: 218. Labirintus [491,66] | K44: -
D45: 8 kátrány (#580) | E45: 400 TVP | F45: 40 TVP | H45: 80 TVP | K45: 500 TVP
D46: 10 szuperkötél (#209)
D47: 5 vaspánt (#817)
D48: 1 hajóláda (#1637)
B50: Isbai jósda (831. épület) [199,55] | C50: Léghajóállomás (#817) küldetéssorozat befejezése | D50: KLD 80 - [187,62] | E50: A küldetéssorozat innentől a Sátortáborban (#832) folytatódik
D51: -
D52: 40 TVP

Sheet SF
B2: Borzalom fellegvára | C2: 24 mópat tetem (#584) | D2: 24 mutáns csont (#331) | E2: 1 gyémántkoponya (#644) | F2: 97. Labirintus [409,65] | G2: 98. Labirintus [409,65] | H2: 1 csillagrubin (#715)
B3: (Északtűz) (671. épület) [311,11]
B4: (Sárkányverem) (672. épület) [309,64]
B5: (Lávafolyó) (673. épület) [312,117]
B7: Csontvár (756. épület) [401,94] | C7: 185. Labirintus [408,97] | D7: 186. Labirintus [393,95] | E7: 188. Labirintus [396,99]
B9: Thargodan könyvtár (Sárkányverem) (768. épület) [308,65] | C9: 1 kru'agon származék (#791) | D9: 1 og'khor esszencia | E9: 197. Labirintus [316,71] | F9: 198. Labirintus [318,60]
C10: 1 ml'othag származék (#792) | D10: 1 krg'humán esszencia
C11: 1 vg'axtol származék (#793)

Sheet 220+
B2: Történelemkutató intézet (691. épület) [242,44] [227,51] | C2: 103. Labirintus [226,16] | D2: 1 sziklozug comb (#858) | E2: 104. Labirintus [254,29] | F2: 105. Labirintus [251,55] | G2: 1 memóriaelixír (#860) | H2: 106. Labirintus [233,10]
B4: Barbár barlang (692. épület) [228,76] [228,111] [257,86] | C4: 120 víz (#27) | D4: 107. Labirintus [254,73] | E4: 108. Labirintus [238,94] | F4: 2 hernyópete (#878) | G4: 109. Labirintus [221,118]
C5: 15 kaja (#2) | F5: 4 kitintüske (#879)
B7: Karbionális látomás (693. épület) [278,27] [289,16] [271,56] | C7: 3 parduanhályog (#909) | D7: 110. Labirintus [291,12] | E7: 111. Labirintus [270,57] | F7: 1 enkala deréköv (#915) | G7: 112. Labirintus [283,22]
C8: 13 pirkit (#153)
C9: 2 szürke briliáns (#908)
C10: 1 gyémántplazma (#910)
C11: 4 skorpiókarom (#911)
C12: 2 quwarg igazgyöngy (#912)
B14: Árnytündér szentély (694. épület) [270,97] | C14: 3 sötét kasza (#957) | D14: 113. Labirintus [286,116] | E14: 114. Labirintus [262,117] | F14: 115. Labirintus [285,67] | G14: 6 ytterium kőzet (#965) | H14: 116. Labirintus [272,71]
B16: Zarknod ónixpiramisa (695. épület) (259,63) (260,63) (259,64) (260,64) | C16: 500 FNO elköltése | D16: 4 dalebgad kristálykulcs (#980) | E16: 132. Labirintus [281,57] | F16: 133. Labirintus [291,121] | G16: 137. Labirintus [249,17] | H16: 138. Labirintus [363,109] | I16: 139. Labirintus [291,121] | J16: 140. Labirintus [422,81] | K16: Tye'rukhagn bíra felkutatása valamelyik tükörtoronyban | L16: 141. Labirintus [327,9]
B18: Vályogviskó (739. épület) [292,21] | C18: A viskón táborozáskor 2 ryuku orgyilkosok leverése | D18: 400 FNO beáldozása | E18: 163. Labirintus [186,30] | F18: 16-os hajózás és vitorláshajó ismerete | G18: 1 ryuku kesztyű
G19: 1 ryuku karvédő
G20: 1 ryuku kalapács
G21: 1 ryuku ökölgyolcs
B23: Toborzóiroda (765. épület) [273,27] | C23: 194. Labirintus [273,30]

Sheet Ryuku
B2: Hoarián falu (726. épület) [490,11] | C2: 6 ryuku ????? | D2: 5 teriád fétis (#1296) | E2: 142. labirintus [475,93] | F2: 143. labirintus [436,100] | G2: 6 hoarián szentírás (#1339) | H2: 1 hoarián sárkánybébi
B4: Nemesi palota (728. épület) [449,19] | C4: KLD 5 | D4: 144. labirintus [446,19] | E4: 20 korty galócapálinka (#1474) | F4: 146. labirintus [447,35] | G4: 145. labirintus [446,19] | H4: 147. labirintus [433,56] | I4: 1 Zarknod fülbevalója (#1304)
C5: 1 kithszaki orgyilkos | E5: 8 édesmoha csomó (#1479)
C6: 90 TVP | E6: 2 azuka vese (#1462)
E7: 1 sárga gyöngy (#1392)
E8: 2 tűzsárkány ital (#1400)
E9: 6 pöfeteg tojás (#1386)
E10: 30 gourry tojás (#1455)
B12: Kikötő (729. épület) [450,21] | C12: KLD 6 | D12: KLD 7 | E12: 148. labirintus [451,20] | F12: 5 ?????? | G12: 149. labirintus [451,20]
C13: 2 ryuku tolvajbanda | D13: hajózás 35+ | F13: 5 ??????
C14: 100 TVP | D14: 80 TVP | F14: 5 ??????
F15: 1 rizspapír-vért
B17: Ryuku katonai tábor (733. épület) [463,84] | C17: 1 Batharak vállemeze | D17: 1 császári parancs (#1359) | E17: 160. labirintus [463,86]
C18: 1 Natharion karkötő
C19: 1 törp sisak
B21: Romos mágustorony (738. épület) [439,105] | C21: 2 azuka vese (#1462) | D21: 161. labirintus [469,79] | E21: Kjotoannam plazmája | F21: 162. labirintus [439,105]
C22: 2 kígyónyelvet (#1473) | E22: 6 yuong tűzpikkely (#1495)
C23: 3 kajmánhúst (#1457) | E23: 6 cseng hópikkely (#1496)
C24: 6 terrathua levelet (#1443) | E24: 3 aszott drakpikkely (#1310)
C25: 3 üveg rumot (#1419) | E25: 1 stabil mágiakő (#1436)
C26: 3 anguaxin váladékot (#1382) | E26: 6 teriád méreg (#1379)
C27: 6 póklábat (#1378)
B30: Kalóztanya (743. épület) [445,119] | C30: 3 ryuku pecsétgyűrű (#1580) | D30: KLD 8 - [450,21] | E30: fossz ki 3 kereskedőhajót | F30: KLD 9 | G30: KLD 10 - [445,19] | H30: 164. labirintus [446,118]
D31: rejtőzködés | F31: Random mező a [433,125]-ös szigeten | G31: 50 TVP
D32: 80 TVP | F32: 80 TVP
B34: Toborzóiroda (766. épület) [447,97] | C34: 195. Labirintus [447,100] | D34: H 1753 (lajstrom medál) | E34: 199. labirintus [443,99]
B36: Nemesi ház (772. épület) (Sawaki) | C36: Nemesi palota (#728) küldetéssorozat befejezése | D36: 1 rémbőr kesztyű (#1468) | E36: 206. Labirintus [469,98] | F36: KLD 47 | G36: 207. Labirintus [459,81] | H36: 208. Labirintus [485,73] | I36: 209. Labirintus [475,82] | J36: A 209-es labi után még 1 extra BE parancs egy másik körben
D37: 1 hósárkány pajzs (#1394) | F37: Csata Mahiro Keisukevel
D38: 2 Kjotoannam plazmája (#1485) | F38: 50 TVP
D39: 3 tűzsárkány ital (#1400)
D40: 1 sárga gyöngy (#1392)
D41: 1 szerencse gyűrűje (#1391)
D42: 1 teriád vadászöv (#1389)
B44: Császári palota (787. épület) (Császárváros) [494,64] | C44: Nemesi ház (#772) küldetéssorozat befejezése | D44: KLD 48 - [494,64] | E44: 1 aprófaforgács (#1860) | F44: 210. Labirintus [496,64] | G44: 211. Labirintus [487,27] | H44: A 211-es labi után még 1 extra BE parancs egy másik körben | I44: 212. Labirintus [494,64]
D45: Báli öltözet (semmi más nem lehet KF-elve ! ) :
D46: díszes nemesi ruha gyöngyfűzős szandál fűzött igazgyöngysor zafír gyűrű gyémánt gyűrű opál karperec díszkatana / díszbuzogány / díszsai
D47: 2 kamikáze orgyilkos
D48: 100 TVP
B50: Ryuku mágustorony (789. épület) (Császárváros) [494,64] | C50: 213. Labirintus [186,60] | D50: 214. Labirintus [226,49] | E50: A 214-es labi után még 1 extra BE parancs egy másik körben | F50: 215. Labirintus [353,52] | G50: 216. Labirintus [434,72]

Sheet KF
B2: Sziránusz őrposzt (819. épület) [600,41] | C2: 200 nerub szemfog (#1871) | D2: KLD 53 - [606,49] | E2: KLD 54 - [606,49] | F2: 10 kővirág gyümölcs (#1956) | G2: 219. Labirintus [607,49] | H2: 1 varázsháló (#1882) | I2: 220. Labirintus [605,49]
D3: Csata 2 random nerubbal | E3: Nyomkövetés 249+ | F3: 5 gyökérsarjadék (#1964) | H3: 1 Kabazuka gyűrűje (#1898)
D4: 50 TVP | E4: 40 TVP | F4: 15 orchidea kehely (#1876) | H4: 2 nerub elixír (#1966)
F5: 5 mimózabimbó (#1878)
F6: 30 pöfeteg spóra (#1901)
F7: 5 tulipán gumó (#1903)
B9: Buborékpalota (820. épület) [589, 55] | C9: Sziránusz őrposzt (#819) küldetéssorozat befejezése | D9: 40 yeti szív (#1070) | E9: 221. Labirintus [611,118] | F9: 222. Labirintus [513,110] | G9: A küldetéssorozat innentől a Tűzmágus barlangban (#821) folytatódik | H9: Visszatérni a Tűzmágus barlangba (#821) | I9: Addig járni a nerub településeket, ameddig meg nem kapod a 225. labirintus térképét | J9: 225. Labirintus [616,91] | K9: 226. Labirintus [608,83]
D10: 40 dűneelf arckendő (#1920)
D11: 3 quwarg halálgömb (#1939)
B13: Tűzmágus barlang (821. épület) [582,78] [564,104] | C13: sziránusz érme (#2005) megléte, melyet a karakter a Buborképalota küldisorban kap (222. labirintus után) | D13: 20 sáfránypor (#211) | E13: 223. Labirintus [612,9] | F13: Visszatérni a Buborékpalotába (#820) | G13: 227. Labirintus [582,78] | H13: 224. Labirintus [535,75] | I13: Visszatérni a Buborékpalotába (#820)
D14: 50 pirkit (#153)
D15: 10 kaktuszbogyó (#429)
D16: 10 tűzbimbó (#623)
D17: 20 varázskő (#305)
D18: 20 őskristály szilánk (#1525)
D19: 30 kronoplazma (#1953)
D20: 3 óelf csontjogar (#1867)
B22: Sátortábor (832. épület) [619,85] | C22: 1 Quttaqrua pörölye (#1948) | D22: 228. Labirintus [517,6] | E22: 229. Labirintus [542,96] | F22: Duldegar felkutatása valamelyik téridő-hasadékban | G22: 230. Labirintus [514,85] | H22: 231. Labirintus [550,48] | I22: H 2025 | J22: 232. Labirintus [525,92] | K22: 233. Labirintus [526,93] | L22: Vissza az Isbai Jósdába (#831)
C23: 1 Agyzúzó (#1982)
C24: 1 Jégisten kopjája (#1915)
C25: 1 Vércsapoló (#1958)
C26: 1 Fadabama hasítója (#1880)
C27: 1 árnypenge (#1946)
C28: 5 sorsfordító (#1940)
C29: 1 Loronden levele (#2007)
B32: Istenek szentélye (840. épület) [564,64] | C32: 100 zanszilánk (#2133) | D32: KLD 81 10 TVP min. szörnyismeret: 100 [564,64] | E32: KLD 82 100 TVP min. főzés 100 [596,109] | F32: KLD 83 100 TVP min. vadászat 100 [504,4] | G32: KLD 84 100 TVP csata 2 xenomorf vadásszal [504,4] | H32: KLD 85 100 TVP min. zene 100 [504,4] | I32: 255. labirintus [513,49] | J32: 257. labirintus [513,49] | K32: 255. labirintus [519,11]
C33: 30 moa relikvia (#1971)
C34: 30 nerub totemfétis (#1968)
C35: 30 quwarg kitindarab (#1959)
C36: 30 mogul szemgolyó (#1976)

Sheet Létsíkok
A1: A VÍZ LÉTSÍKJA
B2: Sziránusz buborékház (841. épület) [649,20] | C2: 10 triton pikkely (#2243) | D2: 259. labirintus [654,32] | E2: 260. labirintus [644,19] | F2: KLD 86 200 TVP min. felderítés : 200 [649,20] | G2: KLD 87 100 TVP harc 2 fürge krabber ellen [662,6] | H2: KLD 88 100 TVP min. úszás : 151 [664,19] | I2: KLD 89 100 TVP min. szörnyidomítás : 101 [651,32] | J2: KLD 90 100 TVP szükséges: 1 memóriaserkentő [640,20] | K2: 261. labirintus [649,22] | L2: 65. Többszemélyes Kaland
C3: 10 szirén hajszál (#2250)
B7: Opati kalmár (843. épület) [647,33] | C7: 10 fekete gyöngy (#99) | D7: KLD 91 100 TVP min. csapdakészítés : 60 [662,6] | E7: KLD 92 100 TVP - [640,20] | F7: KLD 93 100 TVP harc 1 hullámsárkány ellen harc 1 Ishakar ellen [660,41] | G7: 1 hártyaköpeny (#2251) | H7: 262. labirintus [667,8]
C8: 10 quwarg igazgyöngy (#912) | G8: 1 hártyakesztyű (#2252)
C9: 1 moa gyöngy (#378) | G9: 1 hártyakarika (#2253)
C10: 1 sárga gyöngy (#1392) | G10: 1 perpetuum (#2304)
C11: 1 tudás gyöngye (#522)
A13: A FÖLD LÉTSÍKJA
B14: Dolgrin háza (844. épület) [642,52] | C14: 100 fűszerkeverék (#1170) | D14: KLD 94 100 TVP min. bányászat : 200 [651,73] | E14: KLD 95 100 TVP min. felderítés : 400 [651,79] | F14: KLD 96 100 TVP harc 1 sziklabajnok ellen harc 1 sziklavezér ellen [641,52] | G14: 10 quwargszilánk (#2271) | H14: 263. labirintus [665,57]
C15: 100 pöfeteg spóra (#1901) | G15: 10 óriásfétis (#2272)
C16: 20 véka rizs (#1364) | G16: 10 kristálypikkely (#2291)
C17: 20 pézsmatökmag (#934) | G17: 1 nir formázó minta (#2270)
C18: 10 fokhagyma (#403)
C19: 10 gyöngymangó (#135)
C20: 10 nothar bogyó (#923)
C21: 10 kővirág gyümölcs (#1956)
B23: Dolgrun háza (845. épület) [651,73] | C23: 100 rézdarab (#70) | D23: KLD 97 100 TVP min. főzés : 110 [642,52] | E23: KLD 98 100 TVP min. rejtőzködés : 120 [644,56] | F23: KLD 99 100 TVP harc 1 földelem. gigász ellen harc 1 földelem. gigász ellen [644,56] | G23: 100 mithril (#352) | H23: 264. labirintus [667,46]
C24: 100 óndarab (#85) | G24: 100 adamantit (#627)
C25: 100 vasérc (#152) | G25: 50 titanit (#1412)
C26: 100 pirkit (#153) | G26: 20 elemi szikla (#2288)
C27: 100 ezüstdarab (#326) | G27: 10 intarzit (#2267)
C28: 100 ilkin érc (#232) | G28: 10 kryzanit por (#2290)
C29: 100 ramit kő (#226)
C30: 100 pular kristály (#239)
B32: Shishiphusz piramisa (846. épület) [658,55] | C32: 1000 TVP építése az épülő piramisba | D32: KLD 100 100 TVP min. szörnyismeret : 200 [662,57] | E32: KLD 101 100 TVP harc 1 kristálysárkány ellen harc 1 kristálysárkány ellen [652,52] | F32: KLD 102 100 TVP szükséges : 20 elementáris kristály [662,57] | G32: KLD 103 150 TVP min. vitalitás : 100 [662,57] | H32: 2000 TVP építése az épülő piramisba | I32: 265. labirintus [634,81]
B38: Tharr Csarnokai (849. épület) [650,64] | C38: rendelkezz a támogatásával | D38: KLD 104 200 TVP min. szörnyismeret : 200 [650,64] | E38: KLD 105 100 TVP harc 1 Daes Moran ellen [650,64] | F38: 268. labirintus [667,46]
C39: Dolgrinnak
C40: Dolgrunnak
C41: Shishiphusznak
A44: A LEVEGŐ LÉTSÍKJA
B45: Örömök Háza (850. épület) [639,111] | C45: 10 ovimon bogyó (#207) | D45: KLD 106 300 TVP min. szerencsejáték : 50 [639,111] | E45: KLD 107 300 TVP min. szerencsejáték : 80 [639,111] | F45: 3 furulya (#233) | G45: KLD 108 300 TVP min. zene : 150 [639,111] | H45: KLD 109 300 TVP min. zene : 200 [639,111] | I45: 269. labirintus [652,102]
C46: 10 mákrózsa (#56) | F46: 2 tatu dob (#234)
C47: 20 kék orchidea (#68) | F47: 1 dorony duda (#235)
C48: 20 mocsári penke (#148) | F48: 2 lant (#238)
C49: 20 fiatalság itala (#473) | F49: 10 sztázisszilánk (#2327)
C50: 10 kreommat szirom (#925) | F50: 10 térkristály (#2336)
C51: 10 tátika bibe (#1905) | F51: 1 Elenios tekercse (#2342)
C52: 100 sáfránypor (#211)
B54: Tolltanya (851. épület) [657,92] | C54: 100 bronzhegyű nyíl (#94) | D54: KLD 110 200 TVP min. vitalitás : 80 [661,97] | E54: KLD 111 100 TVP csata 2 viharfarkassal [661,97] | F54: 1000 madártoll (#112) | G54: KLD 112 100 TVP min. taumaturgia : 2000 [630,86] | H54: KLD 113 100 TVP min. felderítés : 370 [669,86] | I54: KLD 114 100 TVP min. felderítés : 300 [669,125] | J54: KLD 115 100 TVP harc 1 vortexsárkány ellen harc 1 Vortexörvény ellen [630,125] | K54: 270. labirintus [650,97]
C55: 100 ubuk dobónyíl (#138) | F55: 100 negátortoll (#1947)
C56: 100 vashegyű nyíl (#176) | F56: 20 azúrtoll (#2332)
C57: 100 vas dobónyíl (#189) | F57: 6 főnixtoll (#563)
C58: 100 ében nyílvessző (#848) | F58: 1 aranytoll (#572)
C59: 100 ében dobónyíl (#849) | F59: 10 sztázisszilánk (#2327)
C60: 100 acéltűz nyílvessző (#1126) | F60: 10 fészektoll (#2338)
C61: 100 acéltűz dobónyíl (#1127) | F61: 1 Elenios tekercse (#2342)
B63: Elmekastély (852. épület) [638,98] | C63: KLD 116 100 TVP min. pszi : 770 [638,98] | D63: KLD 117 200 TVP csata 2 tudatfalóval [638,98] | E63: 271. labirintus [638,98] | F63: 1 Elenios tekercse (#2342) | G63: KLD 118 100 TVP min. szörnyismeret : 300 [638,98] | H63: KLD 119 200 TVP min. pszi : 780 [659,111] | I63: KLD 120 100 TVP min. taumaturgia : 2000 [659,111] | J63: KLD 121 200 TVP harc 2 vortexsárkánnyal 1 db düh csillapító [663,118] | K63: 272. labirintus [650,97]
F64: 4 sztázisbuborék (#2329)
F65: 5 térkristály (#2336)
F66: 5 fészektoll (#2338)
B69: Elenios tükörpalotája (853. épület) [649,106] | C69: mutasd fel : | D69: KLD 122 200 TVP min. titkosírás : 220 [649,106] | E69: KLD 123 200 TVP min. felderítés : 500 [194,12] | F69: KLD 124 200 TVP min. bányászat : 300 [598,76] | G69: KLD 125 200 TVP 1 db intarzit [642,52] | H69: KLD 126 40 TVP 2 db vízesszencia [651,26] | I69: KLD 127 100 TVP 1 db agyértágító kenőcs [440,121] | J69: KLD 128 200 TVP min. taumaturgia : 2000 [278,27] | K69: 273. labirintus [421,10] | L69: 274. labirintus [504,4]
C70: azúrtalizmán (#2333)
C71: Ygan érméje (#2357)
C72: smaragdtoll (#2352)
A75: A TŰZ LÉTSÍKJA
B76: Reményparázs (854. épület) [680,37] | C76: KLD 129 300 TVP min. gyógyítás : 350 [186,60] | D76: KLD 130 300 TVP min. gyógyítás : 1 [494,64] | E76: KLD 131 300 TVP harc 1 földelem. gigász ellen harc 1 ht'duner mennydörgő ellen [610, 19] | F76: KLD 132 100 TVP min. gyógyítás : 1 [186,60] | G76: 275. labirintus [692,35] | H76: 100 tűzkő (#2420) | I76: KLD 133 300 TVP min. taumaturgia : 2500 [696,16] | L76: 276. labirintus [692,8]
H77: 10 tűzváltó totem (#2386)
H78: 1 Dornodon rúnája (#2385)
B82: Kontinuum-tágító (855. épület) [696,16] | C82: KLD 134 300 TVP min. felderítés : 500 [186,60] | D82: KLD 135 300 TVP min. felderítés : 550 [494,64] | E82: KLD 136 300 TVP harc 1 földelem. gigász ellen harc 1 ht'duner mennydörgő ellen [610, 19] | F82: KLD 137 100 TVP min. felderítés : 550 [186,60] | G82: 275. labirintus [692,35] | H82: 100 tűzkő (#2420) | I82: KLD 138 300 TVP min. taumaturgia : 2500 [696,16] | J82: 20 zanszilánk (#2133) | K82: 10 tűzváltó totem (#2386) | L82: 276. labirintus [692,8]
H83: 10 bazaltgolyó (#2387) | K83: 10 tűzinda (#2418)
H84: 1 Dornodon rúnája (#2385) | K84: 20 tűzbimbó (#623)
K85: 100 tűzesszencia (#2186)
K86: 200 pirkit (#153)
B88: Tűz szentélye (856. épület) [704,22] | C88: mutasd fel : | D88: 20 tűzkő (#2420) | E88: 284. labirintus [672,22] | F88: 285. labirintus [711,22] | G88: 286. labirintus [692,2] | H88: 287. labirintus [692,41]
C89: Rubinnyakék (#2384) | D89: 2 Dornodon rúnája (#2385)
D90: 5 tűzváltó totem (#2386)
D91: 5 bazaltgolyó (#2387)
D92: 20 lángbimbó (#2226)
D93: 5 tűzinda (#2418)
D94: 100 szaké (#1295)
B96: Dornodon lávakastélya (857. épület) [692,22] | C96: mutasd fel : | D96: KLD 139 200 TVP 10 db pszi kristály [649, 22] | E96: KLD 140 200 TVP 1 trófea nyaklánc [650, 64] | F96: KLD 141 200 TVP 12 db lótuszvirág [649, 106] | G96: 288. labirintus [692,11] | H96: 289. labirintus [706,39]
C97: Rubinnyakék (#2384)
C98: izzó mágiakő (#2388)
A102: AZ ÉLET FÖLDJE
B103: Teknős hínártorony (858. épület)) [677,76] | C103: 1 hebrencs csapda (#147) | D103: KLD 142 300 TVP min. felderítés : 500 [706, 79] | E103: KLD 143 300 TVP harc 1 tőzegelemtál ellen harc 1 hétfejű hidra ellen [707, 48] | F103: KLD 144 50 TVP 10 db kristálygömb [676, 48] | G103: 10 narancsnárcisz (#2461) | H103: 290. labirintus [677,78]
C104: 1 karócsapda (#163) | G104: 20 csepegő méz (#2462)
C105: 1 tüskecsapda (#242) | G105: 50 ködharmat (#2488)
C106: 1 nyílcsapda (#243) | G106: 3 zöldellő gumó (#2466)
C107: 1 gránátcsapda (#431) | G107: 5 kőtojás (#2470)
C108: 1 kórócsapda (#1450) | G108: 1 Sheran ékköve (#2478)
C109: 10 pukkanó tűcsapda (#336) | G109: 1 térfókusz (#2486)
B111: Entek tisztása (859. épület) [691,49] | C111: 100 gyógykenőcs (#313) | D111: KLD 145 200 TVP min. gyógyítás : 400 [678, 61] | E111: KLD 146 200 TVP harc 1 toxikus elementál ellen harc 1 toxikus elementál ellen [689, 78] | F111: KLD 147 50 TVP 10 db kristálygömb [676, 48] | G111: 1 éléetköpeny (#2482) | H111: 291. labirintus [687,63]
C112: 50 sámán gyógykenőcs (#1139) | G112: 50 ködharmat (#2488)
C113: 20 tleikan életkő (#1143) | G113: 3 zöldellő gumó (#2466)
G114: 5 grokgumó (#2476)
G115: 1 Sheran ékköve (#2478)
G116: 1 térfókusz (#2486)
B118: Gemina kertje (860. épület) [694,61] | C118: 200 tűzesszencia (#2186) | D118: KLD 148 150 TVP min. taumaturgia : 1500 [650, 22] | E118: KLD 149 200 TVP harc 1 bazaltúr 2 ellen harc 1 gránitúr 2 ellen [650, 64] | F118: KLD 150 200 TVP harc 1 viharúr 2 ellen harc 1 orkánúr 2 ellen [650, 106] | G118: KLD 151 200 TVP harc 1 burjánzó lánglény ellen harc 1 kremafor ellen [692, 22] | H118: 292. labirintus [694,61] | I118: 293. labirintus [694,61]
C119: 200 vízesszencia (#2187)
C120: 200 légesszencia (#2188)
C121: 200 földesszencia (#2189)

Sheet Makrók
B2: Tündérpalota (750. épület) | C2: KLD 18 | D2: KLD 19 | E2: KLD 20 | F2: KLD 21 | G2: KLD 22
B3: [104,62] | C3: vizestömlő (#3) | D3: aranytű (#272) | E3: fejsze (#1240) | F3: olló (#335) | G3: -
B4: [204,36] | C4: 300 TVP | D4: 200 TVP | E4: 250 TVP | F4: 300 TVP | G4: 200 TVP
B5: [243,48]
B6: [543,98]
B8: Tündérpalota (751. épület) | C8: KLD 23 | D8: KLD 24 | E8: KLD 25 | F8: KLD 26 | G8: KLD 27
B9: [164,62] | C9: vizestömlő (#3) | D9: aranytű (#272) | E9: fejsze (#1240) | F9: olló (#335) | G9: -
B10: [291,109] | C10: 300 TVP | D10: 200 TVP | E10: 250 TVP | F10: 300 TVP | G10: 200 TVP
B11: [600,24]
B13: Tündérpalota (752. épület) | C13: KLD 28 | D13: KLD 29 | E13: KLD 30 | F13: KLD 31 | G13: KLD 32
B14: [196,75] | C14: vizestömlő (#3) | D14: aranytű (#272) | E14: fejsze (#1240) | F14: olló (#335) | G14: -
B15: [488,35] | C15: 300 TVP | D15: 200 TVP | E15: 250 TVP | F15: 300 TVP | G15: 200 TVP
B17: Tündérpalota (753. épület) | C17: KLD 33 | D17: KLD 34 | E17: KLD 35 | F17: KLD 36 | G17: KLD 37
B18: [434,88] | C18: vizestömlő (#3) | D18: aranytű (#272) | E18: fejsze (#1240) | F18: olló (#335) | G18: -
C19: 300 TVP | D19: 200 TVP | E19: 250 TVP | F19: 300 TVP | G19: 200 TVP
B21: Tündérpalota (754. épület) | C21: KLD 38 | D21: KLD 39 | E21: KLD 40 | F21: KLD 41 | G21: KLD 42
B22: [193,97] | C22: vizestömlő (#3) | D22: aranytű (#272) | E22: fejsze (#1240) | F22: olló (#335) | G22: -
B23: [489,98] | C23: 300 TVP | D23: 200 TVP | E23: 250 TVP | F23: 300 TVP | G23: 200 TVP
B25: Tündérpalota (830. épület) | C25: KLD 55 | D25: KLD 56 | E25: KLD 57 | F25: KLD 58 | G25: KLD 59
B26: [444,29] | C26: vizestömlő (#3) | D26: aranytű (#272) | E26: fejsze (#1240) | F26: olló (#335) | G26: -
B27: [527,44] | C27: 300 TVP | D27: 200 TVP | E27: 250 TVP | F27: 300 TVP | G27: 200 TVP

Sheet Egyéb labirintusok
A1: ## | B1: Labirintus | C1: Terület | D1: koordináta | E1: rövid leírás | F1: Aktuális állapot
A2: 21 | B2: mínoszkúp | C2: NY | D2: random | E2: orkok | F2: nem ismert
A3: 22 | B3: mínoszkúp | C3: NY | D3: random | E3: szörnykert | F3: nem ismert
A4: 23 | B4: mínoszkúp | C4: NY | D4: random | E4: varkaudar | F4: nem ismert
A5: 24 | B5: mínoszkúp | C5: NY | D5: random | E5: orkok | F5: nem ismert
A6: 25 | B6: mínoszkúp | C6: NY | D6: random | E6: csapdás | F6: nem ismert
A7: 26 | B7: mínoszkúp | C7: NY | D7: random | E7: szintszívó | F7: nem ismert
A8: 27 | B8: mínoszkúp | C8: NY | D8: random | E8: szintszívó | F8: nem ismert
A9: 28 | B9: mínoszkúp | C9: NY | D9: random | E9: orkok | F9: nem ismert
A10: 29 | B10: mínoszkúp | C10: NY | D10: random | E10: trollfás rövid | F10: nem ismert
A11: 30 | B11: mínoszkúp | C11: NY | D11: random | E11: burástya, sok ajtós | F11: nem ismert
A12: 31 | B12: mínoszkúp | C12: NY | D12: random | E12: orkok | F12: nem ismert
A13: 32 | B13: mínoszkúp | C13: NY | D13: random | E13: orkok | F13: nem ismert
A14: 53 | B14: Varkaudar-Thargodan Invázió | C14: NY | D14: 46,63 | E14: varkaudar ékkő, tudás gyöngye | F14: nem ismert
A15: 54 | B15: Varkaudar-Thargodan Invázió | C15: NY | D15: 98,82 | E15: légiós hátizsák, tgy, trikornis fókusz, esszenciavédelem II. | F15: nem ismert
A16: 55 | B16: Varkaudar-Thargodan Invázió | C16: K | D16: 191,97 | E16: varkaudar ékkő, thargodan vérgömb, trikornis fókusz, jégrúna tekercs | F16: nem ismert
A17: 56 | B17: mínoszkúp | C17: NY | D17: random | E17: élőholtak, galachmit | F17: nem ismert
A18: 57 | B18: mínoszkúp | C18: NY | D18: random | E18: vegyes, galachmit | F18: nem ismert
A19: 58 | B19: mínoszkúp | C19: NY | D19: random | E19: vegyes, galachmit | F19: nem ismert
A20: 59 | B20: mínoszkúp | C20: NY | D20: random | E20: kőkorszakik, galachmit | F20: nem ismert
A21: 60 | B21: mínoszkúp | C21: NY | D21: random | E21: óriásféreg, galachmit | F21: nem ismert
A22: 61 | B22: mínoszkúp | C22: NY | D22: random | E22: szopóköves | F22: nem ismert
A23: 62 | B23: mínoszkúp | C23: NY | D23: random | E23: galachmit | F23: nem ismert
A24: 63 | B24: mínoszkúp | C24: NY | D24: random | E24: varkaudar, galachmit | F24: nem ismert
A25: 64 | B25: mínoszkúp | C25: NY | D25: random | E25: tréfás, galachmit | F25: nem ismert
A26: 65 | B26: mínoszkúp | C26: NY | D26: random | E26: szörnykert, galachmit | F26: nem ismert
A27: 82 | B27: mínoszkúp | C27: K | D27: random | E27: szörnykert | F27: nem ismert
A28: 83 | B28: mínoszkúp | C28: K | D28: 161,114 | E28: víz alatti | F28: kipucolva
A29: 84 | B29: mínoszkúp | C29: K | D29: 161,103 | E29: Eldereth szilánkok | F29: kipucolva
A30: 85 | B30: mínoszkúp | C30: K | D30: 153,95 | E30: kényszerportos | F30: ismert, nem bejárt
A31: 86 | B31: mínoszkúp | C31: K | D31: 144,73 | E31: quwarg | F31: kipucolva
A32: 87 | B32: mínoszkúp | C32: K | D32: 149,102 | E32: szopókőírtás | F32: ismert, nem bejárt
A33: 88 | B33: mínoszkúp | C33: K | D33: random | E33: varkaudar | F33: nem ismert
A34: 89 | B34: mínoszkúp | C34: K | D34: 144,81 | E34: csapdás | F34: kipucolva
A35: 90 | B35: mínoszkúp | C35: K | D35: 157,80 | E35: pszi elementálok | F35: ismert, nem bejárt
A36: 91 | B36: mínoszkúp | C36: K | D36: 150,89 | E36: Főmágus tornya | F36: kipucolva
A37: 92 | B37: mínoszkúp | C37: K | D37: 144,111 | E37: férgek | F37: ismert, nem bejárt
A38: 93 | B38: mínoszkúp | C38: K | D38: 163,13 | E38: csupasz izom | F38: kipucolva
A39: 102 | B39: Varkaudar-Thargodan Invázió | C39: SF | D39: 350.64 | E39: napdragnit, vörös zyelek | F39: kipucolva
A40: 124 | B40: varkaudar látógömbös labi | C40: NY | D40: 122,70 | E40: jéglényes | F40: kipucolva
A41: 125 | B41: varkaudar látógömbös labi | C41: SF | D41: 422,7 | E41: Őrült Montrix | F41: kipucolva
A42: 126 | B42: varkaudar látógömbös labi | C42: NY | D42: 105,117 | E42: kapcsoló azonosítás | F42: kipucolva
A43: 127 | B43: varkaudar látógömbös labi | C43: SF | D43: 308.97 | E43: Thargodan raktár | F43: kipucolva
A44: 128 | B44: varkaudar látógömbös labi | C44: K | D44: 209,76 | E44: varkaudar che pap | F44: kipucolva
A45: 129 | B45: varkaudar látógömbös labi | C45: K | D45: 154,104 | E45: víz alatti, fenékkavicsok | F45: kipucolva
A46: 130 | B46: varkaudar látógömbös labi | C46: 220+ | D46: 284,22 | E46: Jégisten | F46: kipucolva
A47: 131 | B47: varkaudar látógömbös labi | C47: 220+ | D47: 253,90 | E47: Varkaudarok fő raktára | F47: kipucolva
A48: 134 | B48: varkaudar látógömbös labi | C48: NY | D48: 112,110 | E48: kisebb varkaudarok | F48: kipucolva
A49: 135 | B49: Varkaudar-Thargodan Invázió | C49: K | D49: 201,106 | E49: éjfókusz, immunitáskövek | F49: kipucolva
A50: 150 | B50: Kincses térképből | C50: Ryuku | D50: 486,91 | E50: Xhe-Po-Khai gyűrűje, rúnakristály | F50: kipucolva
A51: 151 | B51: Kincses térképből | C51: Ryuku | D51: 435,42 | E51: víz alatti, nemesi ruhadísz, rúnakristály | F51: kipucolva
A52: 152 | B52: Kincses térképből | C52: Ryuku | D52: 464,84 | E52: kalózok, 33 életvíz, rúnakristály | F52: kipucolva
A53: 153 | B53: Kincses térképből | C53: Ryuku | D53: 443,103 | E53: ódon vízköpők, 2 rúnakristály | F53: kipucolva
A54: 170 | B54: Alanori Krónikás labirintus | C54: NY | D54: 80,66 | E54: homokférgek, szent hehely | F54: kipucolva
A55: 171 | B55: Alanori Krónikás labirintus | C55: K | D55: 188,104 | E55: Kaszás Ubaron, holtak akarata, morgan szilánkja | F55: kipucolva
A56: 172 | B56: Alanori Krónikás labirintus | C56: SF | D56: 328,93 | E56: Ywgerothon, Thgd varázskönyv | F56: kipucolva
A57: 173 | B57: Alanori Krónikás labirintus | C57: 220+ | D57: 277,99 | E57: Jokonbia, 10 életvíz | F57: kipucolva
A58: 174 | B58: Alanori Krónikás labirintus | C58: Ryuku | D58: 457,34 | E58: Vuhtakoa elsüllyedt kikötője | F58: kipucolva
A59: 175 | B59: Alanori Krónikás labirintus | C59: NY | D59: 119,74 | E59: Pókok, méregtermő iszák | F59: ismert, nem bejárt
A60: 176 | B60: Alanori Krónikás labirintus | C60: K | D60: 171,65 | E60: Vérmedve-vadászat futam | F60: kipucolva
A61: 177 | B61: Alanori Krónikás labirintus | C61: SF | D61: 376,97 | E61: apró zsákocska | F61: kipucolva
A62: 178 | B62: Alanori Krónikás labirintus | C62: 220+ | D62: 224,32 | E62: esthar gyémántfétis, ősi esszencia, barna immunkő | F62: kipucolva
A63: 179 | B63: Alanori Krónikás labirintus | C63: Ryuku | D63: 492,61 | E63: ódon vízköpők, taumaturgikus öv, rúnakristály, kronokristály | F63: kipucolva
A64: 180 | B64: Alanori Krónikás labirintus | C64: K | D64: 179,89 | E64: derit láncvért, tanulmánytekercs, szivárványszív | F64: kipucolva
A65: 181 | B65: Alanori Krónikás labirintus | C65: 220+ | D65: 279,30 | E65: Snafall, varázsvédő varázs | F65: kipucolva
A66: 200 | B66: Ganüid tájológömbből | C66: SF | D66: 325,57 | E66: kristály vállvédő, ganüid pulzáns | F66: kipucolva
A67: 201 | B67: Ganüid tájológömbből | C67: SF | D67: 313,49 | E67: kronokristály, ganüid pulzáns | F67: kipucolva
A68: 202 | B68: Ganüid tájológömbből | C68: SF | D68: 314,56 | E68: kristály vállvédő, ganüid pulzáns | F68: kipucolva
A69: 203 | B69: Ganüid tájológömbből | C69: SF | D69: 322,57 | E69: kristály vállvédő, ganüid pulzáns | F69: kipucolva
A70: 234 | B70: mínoszkúp | C70: KF | D70: 538,23 | E70: nerubos, Putalaku, szörnykat | F70: kipucolva
A71: 235 | B71: mínoszkúp | C71: KF | D71: 505,27 | E71: vámpíros, vámpírvért | F71: kipucolva
A72: 236 | B72: mínoszkúp | C72: KF | D72: 538,16 | E72: Zhung, Zhug gyűrűje + 3 ében fókusz | F72: kipucolva
A73: 237 | B73: mínoszkúp | C73: KF | D73: 529,85 | E73: Tehgnaquirotan,Pókisten nyakéke, 4 ében fókusz | F73: kipucolva
A74: 238 | B74: mínoszkúp | C74: KF | D74: 609,12 | E74: akarnok,áldott fóliáns | F74: kipucolva
A75: 239 | B75: mínoszkúp | C75: KF | D75: 505.54 | E75: Haarkonos, varázskönyv | F75: kipucolva
A76: 240 | B76: mínoszkúp | C76: KF | D76: 514,52 | E76: vizi, teknős mágiapáncél | F76: kipucolva
A77: 241 | B77: mínoszkúp | C77: KF | D77: 609,70 | E77: moás, moa spektroszkóp | F77: kipucolva
A78: 242 | B78: mínoszkúp | C78: KF | D78: 604,12 | E78: szörnykert, fekete lyuk összerakható | F78: kipucolva
A79: 243 | B79: mínoszkúp | C79: KF | D79: 522,90 | E79: bajnokos, bajnoktalizmán | F79: kipucolva
A80: 244 | B80: Quwarg Inváziós jutalomlabi | C80: NY | D80: 106.96 | E80: quwarg demoralizátor | F80: kipucolva
A81: 245 | B81: Quwarg Inváziós jutalomlabi | C81: K | D81: 199,112 | E81: vörös zyel, sziklozug comb | F81: kipucolva
A82: 246 | B82: Quwarg Inváziós jutalomlabi | C82: 220+ | D82: 279.114 | E82: quwarg végbélnyúlvány, ytter kövek, Buqqe karma | F82: kipucolva
A83: 247 | B83: Quwarg Inváziós jutalomlabi | C83: Ryuku | D83: 447.7 | E83: kronokristály, quwarg opáldragnit | F83: kipucolva
A84: 248 | B84: Quwarg Inváziós jutalomlabi | C84: KF | D84: 612,80 | E84: kronokristály, quwarg moralizátor | F84: kipucolva
A85: 277 | B85: Élőholt inváziós jutalomlabi | C85: NY | D85: 127,70 | E85: esszenciafókusz | F85: nem ismert
A86: 278 | B86: Élőholt inváziós jutalomlabi | C86: K | D86: 196,47 | E86: nekrofókusz | F86: nem ismert
A87: 279 | B87: Élőholt inváziós jutalomlabi | C87: SF | D87: 348,57 | E87: napfókusz | F87: nem ismert
A88: 280 | B88: Élőholt inváziós jutalomlabi | C88: 220+ | D88: 283,60 | E88: ősi csillagfókusz | F88: nem ismert
A89: 281 | B89: Élőholt inváziós jutalomlabi | C89: Ryuku | D89: 467,71 | E89: ryuku védőfókusz | F89: nem ismert
A90: 282 | B90: Élőholt inváziós jutalomlabi | C90: KF | D90: 541,90 | E90: óelf teremtőfókusz | F90: kipucolva
A91: 283 | B91: Élőholt inváziós jutalomlabi | C91: Föld sík | D91: 659,73 | E91: elemi fókusz | F91: kipucolva

Sheet Faji cuccok
B2: Válaszd ki a fajodat : | E2: kobudera
D4: Hogy elkészíttesd szükséged lesz
D6: Bo'adhun fétis | F6: Kyorg relikvia | H6: Árnytünde tekercs | J6: Esthar drágakő
A7: páncél | B7: =LOOKUP(2,1/(adatok!$A$1:$A$84=$E$2)/(adatok!$B$1:$B$84=$A7),adatok!$C$1:$C$84) -> 1045. | C7: =LOOKUP(2,1/(adatok!$A$1:$A$84=$E$2)/(adatok!$B$1:$B$84=$A7),adatok!$D$1:$D$84) -> yiang mellény | D7: =LOOKUP(2,1/(adatok!$A$1:$A$84=$E$2)/(adatok!$B$1:$B$84=$A7),adatok!$E$1:$E$84) -> 757 | E7: =LOOKUP(2,1/(adatok!$A$1:$A$84=$E$2)/(adatok!$B$1:$B$84=$A7),adatok!$F$1:$F$84) -> bo'adhun aranygömb | F7: =LOOKUP(2,1/(adatok!$A$1:$A$84=$E$2)/(adatok!$B$1:$B$84=$A7),adatok!$G$1:$G$84) -> 772 | G7: =LOOKUP(2,1/(adatok!$A$1:$A$84=$E$2)/(adatok!$B$1:$B$84=$A7),adatok!$H$1:$H$84) -> nagymesteri pálca | H7: =LOOKUP(2,1/(adatok!$A$1:$A$84=$E$2)/(adatok!$B$1:$B$84=$A7),adatok!$I$1:$I$84) -> 777 | I7: =LOOKUP(2,1/(adatok!$A$1:$A$84=$E$2)/(adatok!$B$1:$B$84=$A7),adatok!$J$1:$J$84) -> Arx tekercs | J7: =LOOKUP(2,1/(adatok!$A$1:$A$84=$E$2)/(adatok!$B$1:$B$84=$A7),adatok!$K$1:$K$84) -> 747 | K7: =LOOKUP(2,1/(adatok!$A$1:$A$84=$E$2)/(adatok!$B$1:$B$84=$A7),adatok!$L$1:$L$84) -> natharion opál | L7: ---> | M7: ="KT "&D7&" "&F7&" "&H7 -> KT 757 772 777
A8: sisak | B8: =LOOKUP(2,1/(adatok!$A$1:$A$84=$E$2)/(adatok!$B$1:$B$84=$A8),adatok!$C$1:$C$84) -> 1046. | C8: =LOOKUP(2,1/(adatok!$A$1:$A$84=$E$2)/(adatok!$B$1:$B$84=$A8),adatok!$D$1:$D$84) -> yiang sapka | D8: =LOOKUP(2,1/(adatok!$A$1:$A$84=$E$2)/(adatok!$B$1:$B$84=$A8),adatok!$E$1:$E$84) -> 759 | E8: =LOOKUP(2,1/(adatok!$A$1:$A$84=$E$2)/(adatok!$B$1:$B$84=$A8),adatok!$F$1:$F$84) -> ezüstlevél | F8: =LOOKUP(2,1/(adatok!$A$1:$A$84=$E$2)/(adatok!$B$1:$B$84=$A8),adatok!$G$1:$G$84) -> 773 | G8: =LOOKUP(2,1/(adatok!$A$1:$A$84=$E$2)/(adatok!$B$1:$B$84=$A8),adatok!$H$1:$H$84) -> drakolder póráz | H8: =LOOKUP(2,1/(adatok!$A$1:$A$84=$E$2)/(adatok!$B$1:$B$84=$A8),adatok!$I$1:$I$84) -> 778 | I8: =LOOKUP(2,1/(adatok!$A$1:$A$84=$E$2)/(adatok!$B$1:$B$84=$A8),adatok!$J$1:$J$84) -> Bev tekercs | J8: =LOOKUP(2,1/(adatok!$A$1:$A$84=$E$2)/(adatok!$B$1:$B$84=$A8),adatok!$K$1:$K$84) -> 747 | K8: =LOOKUP(2,1/(adatok!$A$1:$A$84=$E$2)/(adatok!$B$1:$B$84=$A8),adatok!$L$1:$L$84) -> natharion opál | L8: ---> | M8: ="KT "&D8&" "&F8&" "&H8 -> KT 759 773 778
A9: pajzs | B9: =LOOKUP(2,1/(adatok!$A$1:$A$84=$E$2)/(adatok!$B$1:$B$84=$A9),adatok!$C$1:$C$84) -> 1047. | C9: =LOOKUP(2,1/(adatok!$A$1:$A$84=$E$2)/(adatok!$B$1:$B$84=$A9),adatok!$D$1:$D$84) -> yiang hárítópajzs | D9: =LOOKUP(2,1/(adatok!$A$1:$A$84=$E$2)/(adatok!$B$1:$B$84=$A9),adatok!$E$1:$E$84) -> 763 | E9: =LOOKUP(2,1/(adatok!$A$1:$A$84=$E$2)/(adatok!$B$1:$B$84=$A9),adatok!$F$1:$F$84) -> ro'galhal lánc | F9: =LOOKUP(2,1/(adatok!$A$1:$A$84=$E$2)/(adatok!$B$1:$B$84=$A9),adatok!$G$1:$G$84) -> 767 | G9: =LOOKUP(2,1/(adatok!$A$1:$A$84=$E$2)/(adatok!$B$1:$B$84=$A9),adatok!$H$1:$H$84) -> kyorg rúnakorong | H9: =LOOKUP(2,1/(adatok!$A$1:$A$84=$E$2)/(adatok!$B$1:$B$84=$A9),adatok!$I$1:$I$84) -> 779 | I9: =LOOKUP(2,1/(adatok!$A$1:$A$84=$E$2)/(adatok!$B$1:$B$84=$A9),adatok!$J$1:$J$84) -> Cru tekercs | J9: =LOOKUP(2,1/(adatok!$A$1:$A$84=$E$2)/(adatok!$B$1:$B$84=$A9),adatok!$K$1:$K$84) -> 747 | K9: =LOOKUP(2,1/(adatok!$A$1:$A$84=$E$2)/(adatok!$B$1:$B$84=$A9),adatok!$L$1:$L$84) -> natharion opál | L9: ---> | M9: KT 763 767 779
A10: kesztyű | B10: =LOOKUP(2,1/(adatok!$A$1:$A$84=$E$2)/(adatok!$B$1:$B$84=$A10),adatok!$C$1:$C$84) -> 1048. | C10: =LOOKUP(2,1/(adatok!$A$1:$A$84=$E$2)/(adatok!$B$1:$B$84=$A10),adatok!$D$1:$D$84) -> yiang kesztyű | D10: =LOOKUP(2,1/(adatok!$A$1:$A$84=$E$2)/(adatok!$B$1:$B$84=$A10),adatok!$E$1:$E$84) -> 758 | E10: =LOOKUP(2,1/(adatok!$A$1:$A$84=$E$2)/(adatok!$B$1:$B$84=$A10),adatok!$F$1:$F$84) -> gyémánt fétisrúd | F10: =LOOKUP(2,1/(adatok!$A$1:$A$84=$E$2)/(adatok!$B$1:$B$84=$A10),adatok!$G$1:$G$84) -> 768 | G10: =LOOKUP(2,1/(adatok!$A$1:$A$84=$E$2)/(adatok!$B$1:$B$84=$A10),adatok!$H$1:$H$84) -> raskhiir bozaka | H10: =LOOKUP(2,1/(adatok!$A$1:$A$84=$E$2)/(adatok!$B$1:$B$84=$A10),adatok!$I$1:$I$84) -> 780 | I10: =LOOKUP(2,1/(adatok!$A$1:$A$84=$E$2)/(adatok!$B$1:$B$84=$A10),adatok!$J$1:$J$84) -> Gór tekercs | J10: =LOOKUP(2,1/(adatok!$A$1:$A$84=$E$2)/(adatok!$B$1:$B$84=$A10),adatok!$K$1:$K$84) -> 747 | K10: =LOOKUP(2,1/(adatok!$A$1:$A$84=$E$2)/(adatok!$B$1:$B$84=$A10),adatok!$L$1:$L$84) -> natharion opál | L10: ---> | M10: KT 758 768 780
A11: csizma | B11: =LOOKUP(2,1/(adatok!$A$1:$A$84=$E$2)/(adatok!$B$1:$B$84=$A11),adatok!$C$1:$C$84) -> 1049. | C11: =LOOKUP(2,1/(adatok!$A$1:$A$84=$E$2)/(adatok!$B$1:$B$84=$A11),adatok!$D$1:$D$84) -> yiang surranó | D11: =LOOKUP(2,1/(adatok!$A$1:$A$84=$E$2)/(adatok!$B$1:$B$84=$A11),adatok!$E$1:$E$84) -> 759 | E11: =LOOKUP(2,1/(adatok!$A$1:$A$84=$E$2)/(adatok!$B$1:$B$84=$A11),adatok!$F$1:$F$84) -> ezüstlevél | F11: =LOOKUP(2,1/(adatok!$A$1:$A$84=$E$2)/(adatok!$B$1:$B$84=$A11),adatok!$G$1:$G$84) -> 769 | G11: =LOOKUP(2,1/(adatok!$A$1:$A$84=$E$2)/(adatok!$B$1:$B$84=$A11),adatok!$H$1:$H$84) -> trakuun napkorong | H11: =LOOKUP(2,1/(adatok!$A$1:$A$84=$E$2)/(adatok!$B$1:$B$84=$A11),adatok!$I$1:$I$84) -> 781 | I11: =LOOKUP(2,1/(adatok!$A$1:$A$84=$E$2)/(adatok!$B$1:$B$84=$A11),adatok!$J$1:$J$84) -> Hro tekercs | J11: =LOOKUP(2,1/(adatok!$A$1:$A$84=$E$2)/(adatok!$B$1:$B$84=$A11),adatok!$K$1:$K$84) -> 747 | K11: =LOOKUP(2,1/(adatok!$A$1:$A$84=$E$2)/(adatok!$B$1:$B$84=$A11),adatok!$L$1:$L$84) -> natharion opál | L11: ---> | M11: KT 759 769 781
A12: köpeny | B12: =LOOKUP(2,1/(adatok!$A$1:$A$84=$E$2)/(adatok!$B$1:$B$84=$A12),adatok!$C$1:$C$84) -> 1050. | C12: =LOOKUP(2,1/(adatok!$A$1:$A$84=$E$2)/(adatok!$B$1:$B$84=$A12),adatok!$D$1:$D$84) -> yiang köpeny | D12: =LOOKUP(2,1/(adatok!$A$1:$A$84=$E$2)/(adatok!$B$1:$B$84=$A12),adatok!$E$1:$E$84) -> 761 | E12: =LOOKUP(2,1/(adatok!$A$1:$A$84=$E$2)/(adatok!$B$1:$B$84=$A12),adatok!$F$1:$F$84) -> bronz nyakörv | F12: =LOOKUP(2,1/(adatok!$A$1:$A$84=$E$2)/(adatok!$B$1:$B$84=$A12),adatok!$G$1:$G$84) -> 776 | G12: =LOOKUP(2,1/(adatok!$A$1:$A$84=$E$2)/(adatok!$B$1:$B$84=$A12),adatok!$H$1:$H$84) -> arany foggyűrű | H12: =LOOKUP(2,1/(adatok!$A$1:$A$84=$E$2)/(adatok!$B$1:$B$84=$A12),adatok!$I$1:$I$84) -> 782 | I12: =LOOKUP(2,1/(adatok!$A$1:$A$84=$E$2)/(adatok!$B$1:$B$84=$A12),adatok!$J$1:$J$84) -> Iti tekercs | J12: =LOOKUP(2,1/(adatok!$A$1:$A$84=$E$2)/(adatok!$B$1:$B$84=$A12),adatok!$K$1:$K$84) -> 747 | K12: =LOOKUP(2,1/(adatok!$A$1:$A$84=$E$2)/(adatok!$B$1:$B$84=$A12),adatok!$L$1:$L$84) -> natharion opál | L12: ---> | M12: KT 761 776 782
A13: vállvédő | B13: =LOOKUP(2,1/(adatok!$A$1:$A$84=$E$2)/(adatok!$B$1:$B$84=$A13),adatok!$C$1:$C$84) -> 1051. | C13: =LOOKUP(2,1/(adatok!$A$1:$A$84=$E$2)/(adatok!$B$1:$B$84=$A13),adatok!$D$1:$D$84) -> yiang vállvédő | D13: =LOOKUP(2,1/(adatok!$A$1:$A$84=$E$2)/(adatok!$B$1:$B$84=$A13),adatok!$E$1:$E$84) -> 760 | E13: =LOOKUP(2,1/(adatok!$A$1:$A$84=$E$2)/(adatok!$B$1:$B$84=$A13),adatok!$F$1:$F$84) -> to'aghan orrkarika | F13: =LOOKUP(2,1/(adatok!$A$1:$A$84=$E$2)/(adatok!$B$1:$B$84=$A13),adatok!$G$1:$G$84) -> 771 | G13: =LOOKUP(2,1/(adatok!$A$1:$A$84=$E$2)/(adatok!$B$1:$B$84=$A13),adatok!$H$1:$H$84) -> idézőszőnyeg | H13: =LOOKUP(2,1/(adatok!$A$1:$A$84=$E$2)/(adatok!$B$1:$B$84=$A13),adatok!$I$1:$I$84) -> 783 | I13: =LOOKUP(2,1/(adatok!$A$1:$A$84=$E$2)/(adatok!$B$1:$B$84=$A13),adatok!$J$1:$J$84) -> Jen tekercs | J13: =LOOKUP(2,1/(adatok!$A$1:$A$84=$E$2)/(adatok!$B$1:$B$84=$A13),adatok!$K$1:$K$84) -> 747 | K13: =LOOKUP(2,1/(adatok!$A$1:$A$84=$E$2)/(adatok!$B$1:$B$84=$A13),adatok!$L$1:$L$84) -> natharion opál | L13: ---> | M13: KT 760 771 783
A14: karvédő | B14: =LOOKUP(2,1/(adatok!$A$1:$A$84=$E$2)/(adatok!$B$1:$B$84=$A14),adatok!$C$1:$C$84) -> 1052. | C14: =LOOKUP(2,1/(adatok!$A$1:$A$84=$E$2)/(adatok!$B$1:$B$84=$A14),adatok!$D$1:$D$84) -> yiang csuklópánt | D14: =LOOKUP(2,1/(adatok!$A$1:$A$84=$E$2)/(adatok!$B$1:$B$84=$A14),adatok!$E$1:$E$84) -> 764 | E14: =LOOKUP(2,1/(adatok!$A$1:$A$84=$E$2)/(adatok!$B$1:$B$84=$A14),adatok!$F$1:$F$84) -> mihlanil érme | F14: =LOOKUP(2,1/(adatok!$A$1:$A$84=$E$2)/(adatok!$B$1:$B$84=$A14),adatok!$G$1:$G$84) -> 767 | G14: =LOOKUP(2,1/(adatok!$A$1:$A$84=$E$2)/(adatok!$B$1:$B$84=$A14),adatok!$H$1:$H$84) -> kyorg rúnakorong | H14: =LOOKUP(2,1/(adatok!$A$1:$A$84=$E$2)/(adatok!$B$1:$B$84=$A14),adatok!$I$1:$I$84) -> 785 | I14: =LOOKUP(2,1/(adatok!$A$1:$A$84=$E$2)/(adatok!$B$1:$B$84=$A14),adatok!$J$1:$J$84) -> Lad tekercs | J14: =LOOKUP(2,1/(adatok!$A$1:$A$84=$E$2)/(adatok!$B$1:$B$84=$A14),adatok!$K$1:$K$84) -> 747 | K14: =LOOKUP(2,1/(adatok!$A$1:$A$84=$E$2)/(adatok!$B$1:$B$84=$A14),adatok!$L$1:$L$84) -> natharion opál | L14: ---> | M14: KT 764 767 785
A15: lábvédő | B15: =LOOKUP(2,1/(adatok!$A$1:$A$84=$E$2)/(adatok!$B$1:$B$84=$A15),adatok!$C$1:$C$84) -> 1053. | C15: =LOOKUP(2,1/(adatok!$A$1:$A$84=$E$2)/(adatok!$B$1:$B$84=$A15),adatok!$D$1:$D$84) -> yiang nadrág | D15: =LOOKUP(2,1/(adatok!$A$1:$A$84=$E$2)/(adatok!$B$1:$B$84=$A15),adatok!$E$1:$E$84) -> 766 | E15: =LOOKUP(2,1/(adatok!$A$1:$A$84=$E$2)/(adatok!$B$1:$B$84=$A15),adatok!$F$1:$F$84) -> aranyfétis | F15: =LOOKUP(2,1/(adatok!$A$1:$A$84=$E$2)/(adatok!$B$1:$B$84=$A15),adatok!$G$1:$G$84) -> 769 | G15: =LOOKUP(2,1/(adatok!$A$1:$A$84=$E$2)/(adatok!$B$1:$B$84=$A15),adatok!$H$1:$H$84) -> trakuun napkorong | H15: =LOOKUP(2,1/(adatok!$A$1:$A$84=$E$2)/(adatok!$B$1:$B$84=$A15),adatok!$I$1:$I$84) -> 786 | I15: =LOOKUP(2,1/(adatok!$A$1:$A$84=$E$2)/(adatok!$B$1:$B$84=$A15),adatok!$J$1:$J$84) -> Mul tekercs | J15: =LOOKUP(2,1/(adatok!$A$1:$A$84=$E$2)/(adatok!$B$1:$B$84=$A15),adatok!$K$1:$K$84) -> 747 | K15: =LOOKUP(2,1/(adatok!$A$1:$A$84=$E$2)/(adatok!$B$1:$B$84=$A15),adatok!$L$1:$L$84) -> natharion opál | L15: ---> | M15: KT 766 769 786
A16: Síkok Kulcsa | B16: 1063. | C16: Síkok Kulcsa | D16: 757 | E16: bo'adhun aranygömb | F16: 768 | G16: raskhiir bozaka | H16: 784 | I16: Kij tekercs | J16: =VLOOKUP($E$2,adatok!A1:L82,11,0) -> 747 | K16: =VLOOKUP($E$2,adatok!A1:L82,12,0) -> natharion opál | L16: ---> | M16: ="KT "&D16&" "&F16&" "&H16 -> KT 757 768 784

Sheet adatok (hidden)
A1: faj | C1: ssz. | D1: név | E1: Bo'adhun fétis | G1: Kyorg relikvia | I1: Árnytünde tekercs | K1: Esthar drágakő
A2: ember | B2: páncél | C2: 982. | D2: mahagóni vért | E2: 761 | F2: bronz nyakörv | G2: 769 | H2: trakuun napkorong | I2: 777 | J2: Arx tekercs | K2: 750 | L2: türkíz karika
A3: ember | B3: sisak | C3: 983. | D3: mahagóni korona | E3: 758 | F3: gyémánt fétisrúd | G3: 775 | H3: bűvölt kristály | I3: 778 | J3: Bev tekercs | K3: 750 | L3: türkíz karika
A4: ember | B4: pajzs | C4: 984. | D4: mahagóni pajzs | E4: 760 | F4: to'aghan orrkarika | G4: 773 | H4: drakolder póráz | I4: 779 | J4: Cru tekercs | K4: 750 | L4: türkíz karika
A5: ember | B5: kesztyű | C5: 985. | D5: mahagóni kesztyű | E5: 760 | F5: to'aghan orrkarika | G5: 772 | H5: nagymesteri pálca | I5: 780 | J5: Gór tekercs | K5: 750 | L5: türkíz karika
A6: ember | B6: csizma | C6: 986. | D6: mahagóni csizma | E6: 759 | F6: ezüstlevél | G6: 776 | H6: arany foggyűrű | I6: 781 | J6: Hro tekercs | K6: 750 | L6: türkíz karika
A7: ember | B7: köpeny | C7: 987. | D7: mahagóni köpeny | E7: 762 | F7: adamantit érme | G7: 770 | H7: kyorg lepel | I7: 782 | J7: Iti tekercs | K7: 750 | L7: türkíz karika
A8: ember | B8: vállvédő | C8: 988. | D8: mahagóni vállvédő | E8: 763 | F8: ro'galhal lánc | G8: 771 | H8: idézőszőnyeg | I8: 783 | J8: Jen tekercs | K8: 750 | L8: türkíz karika
A9: ember | B9: karvédő | C9: 989. | D9: mahagóni karvédő | E9: 766 | F9: aranyfétis | G9: 768 | H9: raskhiir bozaka | I9: 785 | J9: Lad tekercs | K9: 750 | L9: türkíz karika
A10: ember | B10: lábvédő | C10: 990. | D10: mahagóni lábszárvédő | E10: 757 | F10: bo'adhun aranygömb | G10: 774 | H10: raskhiir talizmán | I10: 786 | J10: Mul tekercs | K10: 750 | L10: türkíz karika
A11: elf | B11: páncél | C11: 991. | D11: ezüsttölgy mellény | E11: 766 | F11: aranyfétis | G11: 767 | H11: kyorg rúnakorong | I11: 777 | J11: Arx tekercs | K11: 752 | L11: nyers zafír
A12: elf | B12: sisak | C12: 992. | D12: ezüsttölgy sapka | E12: 763 | F12: ro'galhal lánc | G12: 768 | H12: raskhiir bozaka | I12: 778 | J12: Bev tekercs | K12: 752 | L12: nyers zafír
A13: elf | B13: pajzs | C13: 993. | D13: ezüsttölgy pajzs | E13: 766 | F13: aranyfétis | G13: 769 | H13: trakuun napkorong | I13: 779 | J13: Cru tekercs | K13: 752 | L13: nyers zafír
A14: elf | B14: kesztyű | C14: 994. | D14: ezüsttölgy kesztyű | E14: 762 | F14: adamantit érme | G14: 771 | H14: idézőszőnyeg | I14: 780 | J14: Gór tekercs | K14: 752 | L14: nyers zafír
A15: elf | B15: csizma | C15: 995. | D15: ezüsttölgy surranó | E15: 757 | F15: bo'adhun aranygömb | G15: 774 | H15: raskhiir talizmán | I15: 781 | J15: Hro tekercs | K15: 752 | L15: nyers zafír
A16: elf | B16: köpeny | C16: 996. | D16: ezüsttölgy köpeny | E16: 760 | F16: to'aghan orrkarika | G16: 773 | H16: drakolder póráz | I16: 782 | J16: Iti tekercs | K16: 752 | L16: nyers zafír
A17: elf | B17: vállvédő | C17: 997. | D17: ezüsttölgy vállvédő | E17: 758 | F17: gyémánt fétisrúd | G17: 772 | H17: nagymesteri pálca | I17: 783 | J17: Jen tekercs | K17: 752 | L17: nyers zafír
A18: elf | B18: karvédő | C18: 998. | D18: ezüsttölgy karkötő | E18: 764 | F18: mihlanil érme | G18: 775 | H18: bűvölt kristály | I18: 785 | J18: Lad tekercs | K18: 752 | L18: nyers zafír
A19: elf | B19: lábvédő | C19: 999. | D19: ezüsttölgy nadrág | E19: 761 | F19: bronz nyakörv | G19: 776 | H19: arany foggyűrű | I19: 786 | J19: Mul tekercs | K19: 752 | L19: nyers zafír
A20: törpe | B20: páncél | C20: 1000. | D20: drakolit páncél | E20: 757 | F20: bo'adhun aranygömb | G20: 770 | H20: kyorg lepel | I20: 777 | J20: Arx tekercs | K20: 755 | L20: malachit füzér
A21: törpe | B21: sisak | C21: 1001. | D21: drakolit sisak | E21: 759 | F21: ezüstlevél | G21: 772 | H21: nagymesteri pálca | I21: 778 | J21: Bev tekercs | K21: 755 | L21: malachit füzér
A22: törpe | B22: pajzs | C22: 1002. | D22: drakolit pajzs | E22: 758 | F22: gyémánt fétisrúd | G22: 771 | H22: idézőszőnyeg | I22: 779 | J22: Cru tekercs | K22: 755 | L22: malachit füzér
A23: törpe | B23: kesztyű | C23: 1003. | D23: drakolit kesztyű | E23: 764 | F23: mihlanil érme | G23: 769 | H23: trakuun napkorong | I23: 780 | J23: Gór tekercs | K23: 755 | L23: malachit füzér
A24: törpe | B24: csizma | C24: 1004. | D24: drakolit csizma | E24: 766 | F24: aranyfétis | G24: 774 | H24: raskhiir talizmán | I24: 781 | J24: Hro tekercs | K24: 755 | L24: malachit füzér
A25: törpe | B25: köpeny | C25: 1005. | D25: drakolit köpeny | E25: 765 | F25: káosztiara | G25: 775 | H25: bűvölt kristály | I25: 782 | J25: Iti tekercs | K25: 755 | L25: malachit füzér
A26: törpe | B26: vállvédő | C26: 1006. | D26: drakolit vállvédő | E26: 763 | F26: ro'galhal lánc | G26: 767 | H26: kyorg rúnakorong | I26: 783 | J26: Jen tekercs | K26: 755 | L26: malachit füzér
A27: törpe | B27: karvédő | C27: 1007. | D27: drakolit karvédő | E27: 762 | F27: adamantit érme | G27: 773 | H27: drakolder póráz | I27: 785 | J27: Lad tekercs | K27: 755 | L27: malachit füzér
A28: törpe | B28: lábvédő | C28: 1008. | D28: drakolit lábszárvédő | E28: 760 | F28: to'aghan orrkarika | G28: 768 | H28: raskhiir bozaka | I28: 786 | J28: Mul tekercs | K28: 755 | L28: malachit füzér
A29: árnymanó | B29: páncél | C29: 1009. | D29: mordaith mellény | E29: 762 | F29: adamantit érme | G29: 775 | H29: bűvölt kristály | I29: 777 | J29: Arx tekercs | K29: 756 | L29: obszidián kereszt
A30: árnymanó | B30: sisak | C30: 1010. | D30: mordaith álarc | E30: 764 | F30: mihlanil érme | G30: 768 | H30: raskhiir bozaka | I30: 778 | J30: Bev tekercs | K30: 756 | L30: obszidián kereszt
A31: árnymanó | B31: pajzs | C31: 1011. | D31: mordaith pajzs | E31: 757 | F31: bo'adhun aranygömb | G31: 774 | H31: raskhiir talizmán | I31: 779 | J31: Cru tekercs | K31: 756 | L31: obszidián kereszt
A32: árnymanó | B32: kesztyű | C32: 1012. | D32: mordaith kesztyű | E32: 757 | F32: bo'adhun aranygömb | G32: 776 | H32: arany foggyűrű | I32: 780 | J32: Gór tekercs | K32: 756 | L32: obszidián kereszt
A33: árnymanó | B33: csizma | C33: 1013. | D33: mordaith cipő | E33: 758 | F33: gyémánt fétisrúd | G33: 769 | H33: trakuun napkorong | I33: 781 | J33: Hro tekercs | K33: 756 | L33: obszidián kereszt
A34: árnymanó | B34: köpeny | C34: 1014. | D34: mordaith köpeny | E34: 763 | F34: ro'galhal lánc | G34: 772 | H34: nagymesteri pálca | I34: 782 | J34: Iti tekercs | K34: 756 | L34: obszidián kereszt
A35: árnymanó | B35: vállvédő | C35: 1015. | D35: mordaith vállvédő | E35: 760 | F35: to'aghan orrkarika | G35: 773 | H35: drakolder póráz | I35: 783 | J35: Jen tekercs | K35: 756 | L35: obszidián kereszt
A36: árnymanó | B36: karvédő | C36: 1016. | D36: mordaith karkötő | E36: 759 | F36: ezüstlevél | G36: 770 | H36: kyorg lepel | I36: 785 | J36: Lad tekercs | K36: 756 | L36: obszidián kereszt
A37: árnymanó | B37: lábvédő | C37: 1017. | D37: mordaith nadrág | E37: 761 | F37: bronz nyakörv | G37: 775 | H37: bűvölt kristály | I37: 786 | J37: Mul tekercs | K37: 756 | L37: obszidián kereszt
A38: troll | B38: páncél | C38: 1018. | D38: uglaok páncél | E38: 766 | F38: aranyfétis | G38: 767 | H38: kyorg rúnakorong | I38: 777 | J38: Arx tekercs | K38: 754 | L38: csavart smaragd
A39: troll | B39: sisak | C39: 1019. | D39: uglaok harci maszk | E39: 766 | F39: aranyfétis | G39: 772 | H39: nagymesteri pálca | I39: 778 | J39: Bev tekercs | K39: 754 | L39: csavart smaragd
A40: troll | B40: pajzs | C40: 1020. | D40: uglaok nehéz pajzs | E40: 762 | F40: adamantit érme | G40: 775 | H40: bűvölt kristály | I40: 779 | J40: Cru tekercs | K40: 754 | L40: csavart smaragd
A41: troll | B41: kesztyű | C41: 1021. | D41: uglaok lánckesztyű | E41: 758 | F41: gyémánt fétisrúd | G41: 769 | H41: trakuun napkorong | I41: 780 | J41: Gór tekercs | K41: 754 | L41: csavart smaragd
A42: troll | B42: csizma | C42: 1022. | D42: uglaok szöges csizma | E42: 759 | F42: ezüstlevél | G42: 770 | H42: kyorg lepel | I42: 781 | J42: Hro tekercs | K42: 754 | L42: csavart smaragd
A43: troll | B43: köpeny | C43: 1023. | D43: uglaok láncköpeny | E43: 761 | F43: bronz nyakörv | G43: 768 | H43: raskhiir bozaka | I43: 782 | J43: Iti tekercs | K43: 754 | L43: csavart smaragd
A44: troll | B44: vállvédő | C44: 1024. | D44: uglaok vállvédő | E44: 763 | F44: ro'galhal lánc | G44: 768 | H44: raskhiir bozaka | I44: 783 | J44: Jen tekercs | K44: 754 | L44: csavart smaragd
A45: troll | B45: karvédő | C45: 1025. | D45: uglaok karvédő | E45: 760 | F45: to'aghan orrkarika | G45: 776 | H45: arany foggyűrű | I45: 785 | J45: Lad tekercs | K45: 754 | L45: csavart smaragd
A46: troll | B46: lábvédő | C46: 1026. | D46: uglaok lábszárvédő | E46: 765 | F46: káosztiara | G46: 773 | H46: drakolder póráz | I46: 786 | J46: Mul tekercs | K46: 754 | L46: csavart smaragd
A47: gnóm | B47: páncél | C47: 1027. | D47: moa védőmellény | E47: 760 | F47: to'aghan orrkarika | G47: 772 | H47: nagymesteri pálca | I47: 777 | J47: Arx tekercs | K47: 749 | L47: jáde rakshallion
A48: gnóm | B48: sisak | C48: 1028. | D48: moa sisak | E48: 765 | F48: káosztiara | G48: 775 | H48: bűvölt kristály | I48: 778 | J48: Bev tekercs | K48: 749 | L48: jáde rakshallion
A49: gnóm | B49: pajzs | C49: 1029. | D49: moa hárítópajzs | E49: 759 | F49: ezüstlevél | G49: 769 | H49: trakuun napkorong | I49: 779 | J49: Cru tekercs | K49: 749 | L49: jáde rakshallion
A50: gnóm | B50: kesztyű | C50: 1030. | D50: moa védőkesztyű | E50: 761 | F50: bronz nyakörv | G50: 771 | H50: idézőszőnyeg | I50: 780 | J50: Gór tekercs | K50: 749 | L50: jáde rakshallion
A51: gnóm | B51: csizma | C51: 1031. | D51: moa cipő | E51: 758 | F51: gyémánt fétisrúd | G51: 770 | H51: kyorg lepel | I51: 781 | J51: Hro tekercs | K51: 749 | L51: jáde rakshallion
A52: gnóm | B52: köpeny | C52: 1032. | D52: moa köntös | E52: 757 | F52: bo'adhun aranygömb | G52: 771 | H52: idézőszőnyeg | I52: 782 | J52: Iti tekercs | K52: 749 | L52: jáde rakshallion
A53: gnóm | B53: vállvédő | C53: 1033. | D53: moa vállap | E53: 766 | F53: aranyfétis | G53: 774 | H53: raskhiir talizmán | I53: 783 | J53: Jen tekercs | K53: 749 | L53: jáde rakshallion
A54: gnóm | B54: karvédő | C54: 1034. | D54: moa karkötő | I54: 785 | J54: Lad tekercs | K54: 749 | L54: jáde rakshallion
A55: gnóm | B55: lábvédő | C55: 1035. | D55: moa nadrág | E55: 764 | F55: mihlanil érme | G55: 767 | H55: kyorg rúnakorong | I55: 786 | J55: Mul tekercs | K55: 749 | L55: jáde rakshallion
A56: alakváltó | B56: páncél | C56: 1036. | D56: arany sárkányvért | E56: 760 | F56: to'aghan orrkarika | G56: 775 | H56: bűvölt kristály | I56: 777 | J56: Arx tekercs | K56: 753 | L56: jácint díszkő
A57: alakváltó | B57: sisak | C57: 1037. | D57: arany sárkánysisak | E57: 765 | F57: káosztiara | G57: 772 | H57: nagymesteri pálca | I57: 778 | J57: Bev tekercs | K57: 753 | L57: jácint díszkő
A58: alakváltó | B58: pajzs | C58: 1038. | D58: arany sárkánypajzs | E58: 761 | F58: bronz nyakörv | G58: 773 | H58: drakolder póráz | I58: 779 | J58: Cru tekercs | K58: 753 | L58: jácint díszkő
A59: alakváltó | B59: kesztyű | C59: 1039. | D59: arany sárkánykesztyű | E59: 763 | F59: ro'galhal lánc | G59: 772 | H59: nagymesteri pálca | I59: 780 | J59: Gór tekercs | K59: 753 | L59: jácint díszkő
A60: alakváltó | B60: csizma | C60: 1040. | D60: arany sárkánycsizma | E60: 764 | F60: mihlanil érme | G60: 767 | H60: kyorg rúnakorong | I60: 781 | J60: Hro tekercs | K60: 753 | L60: jácint díszkő
A61: alakváltó | B61: köpeny | C61: 1041. | D61: arany sárkányköpeny | E61: 758 | F61: gyémánt fétisrúd | G61: 768 | H61: raskhiir bozaka | I61: 782 | J61: Iti tekercs | K61: 753 | L61: jácint díszkő
A62: alakváltó | B62: vállvédő | C62: 1042. | D62: arany sárkányvállap | E62: 757 | F62: bo'adhun aranygömb | G62: 776 | H62: arany foggyűrű | I62: 783 | J62: Jen tekercs | K62: 753 | L62: jácint díszkő
A63: alakváltó | B63: karvédő | C63: 1043. | D63: arany sárkánykarperec | E63: 762 | F63: adamantit érme | G63: 774 | H63: raskhiir talizmán | I63: 785 | J63: Lad tekercs | K63: 753 | L63: jácint díszkő
A64: alakváltó | B64: lábvédő | C64: 1044. | D64: arany sárkánynadrág | E64: 760 | F64: to'aghan orrkarika | G64: 770 | H64: kyorg lepel | I64: 786 | J64: Mul tekercs | K64: 753 | L64: jácint díszkő
A65: kobudera | B65: páncél | C65: 1045. | D65: yiang mellény | E65: 757 | F65: bo'adhun aranygömb | G65: 772 | H65: nagymesteri pálca | I65: 777 | J65: Arx tekercs | K65: 747 | L65: natharion opál
A66: kobudera | B66: sisak | C66: 1046. | D66: yiang sapka | E66: 759 | F66: ezüstlevél | G66: 773 | H66: drakolder póráz | I66: 778 | J66: Bev tekercs | K66: 747 | L66: natharion opál
A67: kobudera | B67: pajzs | C67: 1047. | D67: yiang hárítópajzs | E67: 763 | F67: ro'galhal lánc | G67: 767 | H67: kyorg rúnakorong | I67: 779 | J67: Cru tekercs | K67: 747 | L67: natharion opál
A68: kobudera | B68: kesztyű | C68: 1048. | D68: yiang kesztyű | E68: 758 | F68: gyémánt fétisrúd | G68: 768 | H68: raskhiir bozaka | I68: 780 | J68: Gór tekercs | K68: 747 | L68: natharion opál
A69: kobudera | B69: csizma | C69: 1049. | D69: yiang surranó | E69: 759 | F69: ezüstlevél | G69: 769 | H69: trakuun napkorong | I69: 781 | J69: Hro tekercs | K69: 747 | L69: natharion opál
A70: kobudera | B70: köpeny | C70: 1050. | D70: yiang köpeny | E70: 761 | F70: bronz nyakörv | G70: 776 | H70: arany foggyűrű | I70: 782 | J70: Iti tekercs | K70: 747 | L70: natharion opál
A71: kobudera | B71: vállvédő | C71: 1051. | D71: yiang vállvédő | E71: 760 | F71: to'aghan orrkarika | G71: 771 | H71: idézőszőnyeg | I71: 783 | J71: Jen tekercs | K71: 747 | L71: natharion opál
A72: kobudera | B72: karvédő | C72: 1052. | D72: yiang csuklópánt | E72: 764 | F72: mihlanil érme | G72: 767 | H72: kyorg rúnakorong | I72: 785 | J72: Lad tekercs | K72: 747 | L72: natharion opál
A73: kobudera | B73: lábvédő | C73: 1053. | D73: yiang nadrág | E73: 766 | F73: aranyfétis | G73: 769 | H73: trakuun napkorong | I73: 786 | J73: Mul tekercs | K73: 747 | L73: natharion opál
A74: mutáns | B74: páncél | C74: 1054. | D74: mélybíbor páncél | E74: 765 | F74: káosztiara | G74: 773 | H74: drakolder póráz | I74: 777 | J74: Arx tekercs | K74: 751 | L74: rítusónix
A75: mutáns | B75: sisak | C75: 1055. | D75: mélybíbor álarc | E75: 763 | F75: ro'galhal lánc | G75: 767 | H75: kyorg rúnakorong | I75: 778 | J75: Bev tekercs | K75: 751 | L75: rítusónix
A76: mutáns | B76: pajzs | C76: 1056. | D76: mélybíbor pajzs | E76: 764 | F76: mihlanil érme | G76: 770 | H76: kyorg lepel | I76: 779 | J76: Cru tekercs | K76: 751 | L76: rítusónix
A77: mutáns | B77: kesztyű | C77: 1057. | D77: mélybíbor kesztyű | E77: 757 | F77: bo'adhun aranygömb | G77: 774 | H77: raskhiir talizmán | I77: 780 | J77: Gór tekercs | K77: 751 | L77: rítusónix
A78: mutáns | B78: csizma | C78: 1058. | D78: mélybíbor csizma | E78: 760 | F78: to'aghan orrkarika | G78: 772 | H78: nagymesteri pálca | I78: 781 | J78: Hro tekercs | K78: 751 | L78: rítusónix
A79: mutáns | B79: köpeny | C79: 1059. | D79: mélybíbor köpeny | E79: 765 | F79: káosztiara | G79: 776 | H79: arany foggyűrű | I79: 782 | J79: Iti tekercs | K79: 751 | L79: rítusónix
A80: mutáns | B80: vállvédő | C80: 1060. | D80: mélybíbor vállpánt | E80: 758 | F80: gyémánt fétisrúd | G80: 769 | H80: trakuun napkorong | I80: 783 | J80: Jen tekercs | K80: 751 | L80: rítusónix
A81: mutáns | B81: karvédő | C81: 1061. | D81: mélybíbor karvédő | E81: 761 | F81: bronz nyakörv | G81: 775 | H81: bűvölt kristály | I81: 785 | J81: Lad tekercs | K81: 751 | L81: rítusónix
A82: mutáns | B82: lábvédő | C82: 1062. | D82: mélybíbor lábszárvédő | E82: 764 | F82: mihlanil érme | G82: 771 | H82: idézőszőnyeg | I82: 786 | J82: Mul tekercs | K82: 751 | L82: rítusónix
A83: Síkok Kulcsa
B87: ember | D87: nem ismert
B88: elf | D88: ismert, nem bejárt
B89: törpe | D89: kipucolva
B90: árnymanó
B91: troll
B92: gnóm
B93: alakváltó
B94: kobudera
B95: mutáns

Sheet Ősi és fattyas cuccok
B1: Éjfattyas tárgyak és komponenseik táblázata
C3: származékok | H3: esszenciák | N3: További komponens
A4: ## | B4: Név | C4: ghraiton | D4: kruagon | E4: mlothag | F4: rdalv | G4: vgaxtol | H4: ghraiton | I4: kruagon | J4: mlothag | K4: rdalv | L4: vgaxtol | M4: dorka
A5: 794 | B5: Vg'axtol gyűrű | C5: - | D5: - | E5: 3 | F5: - | G5: 3 | H5: - | I5: - | J5: - | K5: - | L5: - | M5: - | N5: 1 smaragd védőgyűrű
A6: 795 | B6: Gh'raiton fókusz | C6: 3 | D6: 3 | E6: - | F6: - | G6: - | H6: - | I6: - | J6: - | K6: - | L6: - | M6: - | N6: 1 arany papi karkötő
A7: 796 | B7: Rd'alv amulett | C7: 1 | D7: - | E7: 1 | F7: 2 | G7: - | H7: - | I7: - | J7: - | K7: - | L7: - | M7: - | N7: 1 rubin fejék
A8: 797 | B8: Ml'othag abroncs | C8: 1 | D8: 1 | E8: 1 | F8: 1 | G8: 1 | H8: - | I8: - | J8: - | K8: - | L8: - | M8: - | N8: 1 bunthar bőr
A9: 1064 | B9: Tl'urlang konverter | C9: 4 | D9: 4 | E9: 4 | F9: 4 | G9: 4 | H9: - | I9: - | J9: - | K9: - | L9: - | M9: - | N9: 4 tl'urlang erőkő
A10: 803 | B10: Ősi karkötő | C10: - | D10: - | E10: - | F10: 8 | G10: 8 | H10: 1 | I10: - | J10: - | K10: - | L10: - | M10: - | N10: -
A11: 807 | B11: Ősi sisak | C11: 10 | D11: 10 | E11: - | F11: - | G11: - | H11: - | I11: - | J11: - | K11: - | L11: 1 | M11: - | N11: -
A12: 804 | B12: Ősi csizma | C12: - | D12: - | E12: 10 | F12: - | G12: 10 | H12: - | I12: - | J12: - | K12: 1 | L12: - | M12: - | N12: -
A13: 805 | B13: Ősi vállvédő | C13: 7 | D13: - | E13: 7 | F13: - | G13: - | H13: - | I13: 1 | J13: - | K13: - | L13: - | M13: - | N13: -
A14: 806 | B14: Ősi nyaklánc | C14: - | D14: 9 | E14: - | F14: 9 | G14: - | H14: - | I14: - | J14: 1 | K14: - | L14: - | M14: - | N14: -
A15: 810 | B15: Ősi kard | C15: - | D15: 5 | E15: 5 | F15: 5 | G15: - | H15: 1 | I15: - | J15: - | K15: - | L15: 1 | M15: - | N15: -
A16: 809 | B16: Ősi páncél | C16: - | D16: - | E16: - | F16: - | G16: - | H16: 2 | I16: 2 | J16: 2 | K16: 2 | L16: 2 | M16: 1 | N16: -
B18: Összesen: | C18: =SUM(C6,C8,C10:C16) -> 21 | D18: =SUM(D6,D8,D10:D16) -> 28 | E18: 23 | F18: 23 | G18: 19 | H18: 4 | I18: 3 | J18: 3 | K18: 3 | L18: 4 | M18: 1
B19: A Karakternél van : | C19: 11 | D19: 11 | E19: 6 | F19: 25 | G19: 9 | H19: 3 | I19: 1 | J19: 3 | K19: 10 | L19: 3 | M19: 0
B21: Ebből a listából erősen idejét múlt és talán felesleges összerakni, a Vg'axtol gyűrű, A Rd'alv amulett és a Tl'urlang konverter
B22: Ezen tárgyak kihagyásával jelentősen rövidíthető a fattyazás, ugyanis, ha van kellő számú extra kincsker rajtunk, akkor a származékok beszerzése jelenti a szűk keresztmetszetet majd
B23: A Ml'othag abroncs a legeslegelső tárgy legyen amit összerakunk
C25: esszenciák (Zarknod sor)
C26: nt'lagod | D26: dr'thanox | E26: bn'oxrad | F26: zg'umrad | G26: en'trauk | H26: ud'mroag | I26: og'lhobn
A27: 1190 | B27: Urgol lángpallosa | C27: 1 | D27: 1 | E27: 1 | F27: 2
A28: 1191 | B28: Urgol lángdárdája | C28: 1 | D28: 1 | E28: 1 | F28: 2
A29: 1192 | B29: Urgol lángbuzogánya | C29: 1 | D29: 1 | E29: 1 | F29: 2
A30: 1193 | B30: dr'thanox gyűrű | D30: 3 | E30: 1 | J30: +5 AC, +10 támadás, +5 szer., +220 maxép.
A31: 1194 | B31: nt'lagod karkötő | C31: 3 | E31: 1 | J31: +7 AC, +5 erő, +150 maxép., -30 sebződés/ütés fattyaktól
A32: 1195 | B32: Zt'tuzzarxn végzete | G32: 2 | H32: 2 | I32: 2
A33: 1196 | B33: og'lhobn fülbevaló | H33: 1 | I33: 2 | J33: -35 AC, +15 támadás, +7 szer., +200 maxép.
A34: 1197 | B34: 2 db ud'mroag kulcs | G34: 2 | H34: 4 | I34: 2
A35: 1216 | B35: Urgol lángkesztyűje | C35: 1 | D35: 1 | E35: 1 | F35: 2
B37: Összesen kell: | C37: 4 | D37: 4 | E37: 3 | F37: 2 | G37: =SUM(G27:G35) -> 4 | H37: =SUM(H27:H35) -> 7 | I37: 6
B38: A Karakternél van :
B40: Az utolsó 3 fatty csak a 141-es labiban található. Az első 4 fatty a 140-esben van, de a 141-esben is van belőlük annyi, hogy minden legyártható belőlük.
B41: Mindenesetre az Urgol fegyvert, az nt'lagod karkötőt és a dr'thanox gyűrűt érdemes még a 140esből kiütni!
B42: Az ud'mroag kulcsból 2 kell - fentebb a duplázott ár van a táblázatban, a fegyverekből csak a főszakihoz érdemes egyet gyártani.
C44: 4.0 éjfatty esszenciák és egyéb kellékek | J44: További komponens
C45: og'khor | D45: iz'gribbor | E45: krg'humán | F45: pr'queztoor | G45: gl'gtremp | H45: ud'mroag | I45: zg'vzung
A46: 1777 | B46: éjkulcs | C46: 2 | D46: 2 | J46: -
A47: 1799 | B47: zg'vzung csatoló | F47: 1 | G47: 1 | I47: 1 | J47: 1 gór formázó minta
A48: 1803 | B48: kristály dragnit | E48: 1 | F48: 1 | G48: 1 | J48: 2 tl'urlang gömb | K48: 2 kristályszilánk
B50: Összesen kell: | C50: =SUM(C46:C48) -> 2 | D50: =SUM(D46:D48) -> 2 | E50: 1 | F50: 2 | G50: 2 | H50: 0 | I50: 1
B51: A Karakternél van :

Sheet Avatárok
A1: ## | B1: Név | C1: Trezsör | D1: Táj | E1: Pozíció | F1: Szint | G1: Támadás | H1: Max. ÉP | I1: AC(sz,v,ü) | J1: Sebzés | K1: Sebezhetőség | L1: Immunitás | M1: Spec. | N1: Varázslat
A2: 7099 | B2: Virotac, a művész | C2: Virotac gyűrűje | D2: 220 | E2: 264,49 | F2: 60 | G2: 145 | H2: 4400 | I2: 220-220-220 | L2: tűz alapú varázslat nem hat rá méreg nem hat rá | M2: Mentális támadás (4 ÉP-re esel) | N2: fehér glóbusz negatív csapás
A3: 7100 | B3: Lordac, a katona | C3: Lordac kesztyűje | D3: SF | E3: 422,17 | F3: 70 | G3: 150 | H3: 6800 | I3: 235-235-215 | J3: 1x60 | K3: 0.7 | M3: Itélkezik | N3: fehér glóbusz istenítélet
A4: 7101 | B4: Arutac, az öreg | C4: Arutac mithrilöve | D4: 220 | E4: 228,61 | F4: 62 | G4: 125 | H4: 6000 | I4: 215-215-190 | J4: 1x100 | K4: 0.5 | L4: hideg alapú varázslat nem hat rá | N4: fehér glóbusz
A5: 7102 | B5: Katrac, a kegyetlen | C5: Katrac káoszkönyve | D5: 220 | E5: 262,120 | F5: 66 | G5: 125 | H5: 5000 | I5: 220-220-220 | J5: 1x100/4x5d25+60 | L5: halál alapú varázslat nem hat rá | M5: halálkiáltás/öregít | N5: lángtenger
A6: 7103 | B6: Iniac, a csábító | C6: Iniac nyaklánca | D6: K (labi) | E6: 161,11 | F6: 60 | G6: 110 | H6: 3000 | I6: 200-200-200 | J6: 8x5d20+90 | K6: 0.7 | M6: Labirintusban van (melyet Katrac) legyőzése után kapsz meg, benne sok csapda (-6 támadás, vp szívó (1. szint 8-as pont)) illuzio (nehezen mentheto) vagy halalkiáltás | N6: negatív csapás puha ütés
A7: 7104 | B7: Gotac, a szikla | C7: Gotac sisakja | D7: Ryuku | E7: 448,49 | F7: 70 | H7: 7000 | I7: 250-250-205 | J7: 2x5d10+500 | N7: nagyobb pajzszúzás
A8: 7105 | B8: Zortac, a szörny | C8: Zortac méregfoga | D8: 220 | E8: 241,13 | F8: 66 | G8: 180 | H8: 6701 | I8: 210-210-210 | J8: 10x5d10+400 | M8: gázt lehel | N8: fekete energia
A9: 7106 | B9: Baurtac, a hatalmas | C9: Baurtac kristálya | D9: SF | E9: 312,65 | F9: 60 | G9: 160 | H9: 3600 | I9: 216-216-216 | J9: 1x6d25+120 | L9: tűz alapú varázslat nem hat rá energia alapú varázslat nem hat rá méreg nem hat rá | N9: manarobbantás istenítélet energiacsóva fekete energia

Sheet Kihívás Tornya
A1: Kihívás Tornya | C1: fordulószám
A2: 1. szint | B2: teljesítve | C2: 188
A3: 2. szint | B3: teljesítve | C3: 195
A4: 3. szint | B4: teljesítve | C4: 419
A5: 4. szint
A6: 5. szint | B6: teljesítve | C6: 228
A7: 6. szint
A8: 7. szint
A9: 8. szint

Sheet Dragnitok
A1: ## | B1: Tárgy neve | C1: Tulajdnoság | D1: Lelőhely | E1: Fegyver | F1: Pajzs | G1: Páncél | H1: Sisak | I1: Köpeny | J1: Vállvédő | K1: Kesztyű | L1: Öv | M1: Nadrág | N1: Csizma | O1: Nyaklánc | P1: Karkötő | Q1: Gyűrű
A2: 1741 | B2: rubin dragnit | C2: +6 védettség, +6 támadás, +3 sebzés | D2: 39. TK - Draklenek ellenfele | F2: X | G2: X | H2: X
A3: 1742 | B3: quwarg dragnit | C3: +5 maxÉP | D3: Quwarg ikerboly (#1740) | E3: X | F3: X | G3: X | H3: X | I3: X | J3: X | K3: X | L3: X | M3: X | N3: X | O3: X | P3: X | Q3: X
A4: 1743 | B4: smaragd dragnit | C4: +10 védettség, +10 támadás, +10 max. ép | D4: 40. TK - Ryuku követ palotája | F4: X | G4: X | H4: X | L4: X
A5: 1744 | B5: vörös dragnit | C5: +5 védettség, +5 támadás | D5: 41. TK - Honvédő harc a tengerparton | E5: X | K5: X
A6: 1745 | B6: jég dragnit | C6: +5 max. ép., +5 mentő tűz ellen | D6: 189. (NY) és 224. (KF) labirintus | E6: X | F6: X | G6: X | H6: X | I6: X | J6: X | K6: X | L6: X | M6: X | N6: X | O6: X | P6: X | Q6: X
A7: 1748 | B7: topáz dragnit | C7: +3 sebzés | D7: olimpiai nyeremény / olimpiai licit | E7: X
A8: 1803 | B8: kristály dragnit | C8: +15 sebzés ganüidek ellen | D8: KT-vel gyártható | E8: X | F8: X | G8: X | H8: X | K8: X
A9: 1886 | B9: képlékeny dragnit | C9: +10 IQ, 20 max. vp, -10 ellenfél mentőre | D9: szinguláris szaggató (#7246) | H9: X
A10: 1928 | B10: tündöklő dragnit | C10: +10 védettség, +10 szer., +10 max. ép | D10: Rabu thin főbiztos (#7393) | F10: X | J10: X
A11: 1929 | B11: hibátlan dragnit | C11: +10 erő, +10 ügyesség, +5 támadás | D11: Rabu thin főbiztos (#7393) | K11: X | L11: X
A12: 1930 | B12: vihardragnit | C12: +10 szer., +20 max. ép, +20 max vp, +10 HM | D12: Rabu thin főbiztos (#7393) | M12: X | N12: X
A13: 1931 | B13: sáfránydragnit | C13: +5 védettség, +5 támadás, +5 sebzés | D13: Rabu thin főbiztos (#7393) | E13: X
A14: 1932 | B14: borostyándragnit | C14: +10 védettség, +10 egészség, +40 max. ép | D14: Rabu thin főbiztos (#7393) | G14: X | I14: X
A15: 1933 | B15: haláldragnit | C15: +10 védettség, +10 szer., +10 tau, +10 teo | D15: Rabu thin főbiztos (#7393) | E15: X | F15: X
A16: 2015 | B16: parázsdragnit | C16: +10 szer., +100 max. vp., +20 tau, +10 őstau | D16: Démonparázs (#7413) | G16: X
A17: 2060 | B17: nekromanta dragnit | C17: +20% max életkor, +10 egészség, +20 max. ép, +10 vitalitás | D17: 48. TK - Mhufexi exhumálás | J17: X | L17: X
A18: 2061 | B18: Daxx Igazgyöngy | C18: +5 egészség, +5 ügyesség, +5 tau, +5 őstau | D18: 50. TK - 22-es Dimenziórés | G18: X | L18: X | M18: X
A19: 2066 | B19: quwarg opáldragnit | C19: +2 vitalitás, +2 MxTu, +40 max. ép | D19: 247. labirintus (Ryuku) | Q19: X
A20: 2074 | B20: képlékeny metadragnit | C20: +20 IQ, 40 max. vp, -20 ellenfél mentőre | D20: képlékeny dragnit + metakövek | H20: X
A21: 2075 | B21: tündöklő metadragnit | C21: +20 védettség, +20 szer., +20 max. ép | D21: tündöklő dragnit + metakövek | F21: X | J21: X
A22: 2076 | B22: hibátlan metadragnit | C22: +20 erő, +20 ügyesség, +10 támadás | D22: hibátlan dragnit + metakövek | K22: X | L22: X
A23: 2077 | B23: viharos metadragnit | C23: +20 szer., +40 max. ép, +40 max vp, +20 HM | D23: vihardragnit + metakövek | M23: X | N23: X
A24: 2078 | B24: sáfrányos metadragnit | C24: +10 védettség, +10 támadás, +10 sebzés | D24: sáfránydragnit + metakövek | E24: X
A25: 2079 | B25: borostyán metadragnit | C25: +20 védettség, +20 egészség, +80 max. ép | D25: borostyándragnit + metakövek | G25: X | I25: X
A26: 2080 | B26: halálos metadragnit | C26: +20 védettség, +20 szer., +20 tau, +20 teo | D26: haláldragnit + metakövek | E26: X | F26: X
A27: 2081 | B27: parázsló metadragnit | C27: +20 szer., +200 max. vp., +40 tau, +20 őstau | D27: parázsdragnit + metakövek | E27: X | F27: X
A30: Egyedi / már nem beszerzhető dragnitok
A31: 1752 | B31: Beansidhe dragnitja | C31: +10 szerencse | D31: Olimpiai aukción lehetett venni | E31: X | F31: X | G31: X | H31: X | I31: X | J31: X | K31: X | L31: X | M31: X | N31: X | O31: X | P31: X | Q31: X
A32: 1801 | B32: Bufa dragnitja | C32: +10 erő | D32: Ősi Hajnal lovagjai KT-tárgya | E32: X | F32: X | G32: X | H32: X | I32: X | J32: X | K32: X | L32: X | M32: X | N32: X | O32: X | P32: X | Q32: X
A33: 1822 | B33: varkaudar dragnit | C33: +5 max. ép | D33: 2. vark. invázió jutalma a lázadóknak | E33: X | F33: X | G33: X | H33: X | I33: X | J33: X | K33: X | L33: X | M33: X | N33: X | O33: X | P33: X | Q33: X
